Workbook

Sheet ORÇAMENTO
G4: DATA BASE: | H4: junho -2020
A5: COMPLEXO (REFORMA DA PRAÇA TENISSON FONTES - PRAÇA DE ALIMENTAÇÃO E CONSTRUÇÃO DE TERMINAL RODOVIÁRIO) - ETAPA 1 | G5: PREÇO GLOBAL: | H5: =H376 -> 1099532.59
A6: =#REF! ->  | G6: BDI: | H6: 0
A7: LOCAL: município de Itabaianinha, no estado de Sergipe | G7: BDI | H7: 21.39
A8: PLANILHA ORÇAMENTÁRIA DA OBRA
A10: ITEM | B10: CÓDIGO | C10: DESCRIÇÃO | D10: UNID. | E10: QUANTIDADE | F10: CUST. UNIT | G10: PREÇO UNIT. | H10: PREÇO TOTAL
A11: 1 | C11: ADMINISTRAÇÃO LOCAL E SERVIÇOS PRELIMINARES
A12: 1.1 | C12: ADMINISTRAÇÃO LOCAL
A13: 1.1.1 | C13: Equipe Dirigente
A14: 1.1.1.1 | B14: CPU_1 | C14: Engenheiro civil de obra junior com encargos complementares | D14: h | E14: 96 | F14: =IF(B14="","",VLOOKUP(B14,'RELAÇÃO DE COMPOSIÇÕES'!$A$10:$F$374,6,FALSE)) -> 93.87 | G14: =IF(B14="","",ROUND(F14*(1+$H$6),2)) -> 93.87 | H14: =IF(B14="","",ROUND(E14*G14,2)) -> 9011.52
A15: 1.1.1.2 | B15: CPU_2 | C15: Mestre de obras com encargos complementares | D15: h | E15: 960 | F15: =IF(B15="","",VLOOKUP(B15,'RELAÇÃO DE COMPOSIÇÕES'!$A$10:$F$374,6,FALSE)) -> 43.19 | G15: =IF(B15="","",ROUND(F15*(1+$H$6),2)) -> 43.19 | H15: =IF(B15="","",ROUND(E15*G15,2)) -> 41462.4
A16: 1.1.2 | B16: CPU_3 | C16: Manutenção do Canteiro | D16: un | E16: 1 | F16: =IF(B16="","",VLOOKUP(B16,'RELAÇÃO DE COMPOSIÇÕES'!$A$10:$F$374,6,FALSE)) -> 3098.21 | G16: 3098.21 | H16: 3098.21
A17: 1.2 | C17: SERVIÇOS PRELIMINARES
A18: 1.2.1 | B18: CPU_4 | C18: Placa de obra em chapa aço galvanizado, instalada | D18: m2 | E18: 6 | F18: =IF(B18="","",VLOOKUP(B18,'RELAÇÃO DE COMPOSIÇÕES'!$A$10:$F$374,6,FALSE)) -> 341.38 | G18: =IF(B18="","",ROUND(F18*(1+$H$6),2)) -> 341.38 | H18: =IF(B18="","",ROUND(E18*G18,2)) -> 2048.28
A19: 1.2.2 | B19: CPU_5 | C19: Instalação provisória de energia elétrica, aerea, trifasica, em poste galvanizado, exclusive fornecimento do medidor | D19: un | E19: 1 | F19: =IF(B19="","",VLOOKUP(B19,'RELAÇÃO DE COMPOSIÇÕES'!$A$10:$F$374,6,FALSE)) -> 1953.49 | G19: 1953.49 | H19: 1953.49
A20: 1.2.3 | B20: CPU_6 | C20: Ligação Predial de Água em Mureta de Concreto, Provisória ou Definitiva, com Fornecimento de Material, inclusive Mureta e Hidrômetro, Rede DN 50mm | D20: UN | E20: 1 | F20: =IF(B20="","",VLOOKUP(B20,'RELAÇÃO DE COMPOSIÇÕES'!$A$10:$F$374,6,FALSE)) -> 459.67 | G20: 459.67 | H20: 459.67
A21: 1.2.4 | B21: CPU_7 | C21: Tapume com telha metálica. af_05/2018 (para o terminal rodoviário) | D21: m2 | E21: 345.6 | F21: =IF(B21="","",VLOOKUP(B21,'RELAÇÃO DE COMPOSIÇÕES'!$A$10:$F$374,6,FALSE)) -> 73.96 | G21: 73.96 | H21: 25560.58
A22: 1.2.5 | B22: CPU_8 | C22: Locação de container - Almoxarifado com banheiro - 6,00 x 2,30m | D22: mês | E22: 5 | F22: =IF(B22="","",VLOOKUP(B22,'RELAÇÃO DE COMPOSIÇÕES'!$A$10:$F$374,6,FALSE)) -> 439.48 | G22: 439.48 | H22: 2197.4
A23: 1.2.6 | B23: CPU_9 | C23: Locação de container - Escritório com banheiro - 6,20 x 2,20m | D23: mês | E23: 5 | F23: =IF(B23="","",VLOOKUP(B23,'RELAÇÃO DE COMPOSIÇÕES'!$A$10:$F$374,6,FALSE)) -> 562.53 | G23: =IF(B23="","",ROUND(F23*(1+$H$6),2)) -> 562.53 | H23: =IF(B23="","",ROUND(E23*G23,2)) -> 2812.65
A24: 2 | C24: TERMINAL RODOVIÁRIO
A25: 2.1 | C25: DEMOLIÇÃO
A26: 2.1.1 | B26: CPU_10 | C26: Demolição de pavimentação em paralelepípedo sem reaproveitamento | D26: m2 | E26: 597.4 | F26: =IF(B26="","",VLOOKUP(B26,'RELAÇÃO DE COMPOSIÇÕES'!$A$10:$F$374,6,FALSE)) -> 9.46 | G26: 9.46 | H26: 5651.4
A27: 2.1.2 | B27: CPU_11 | C27: Carga manual de entulho em caminhao basculante 6 m3 | D27: m3 | E27: 74.68 | F27: =IF(B27="","",VLOOKUP(B27,'RELAÇÃO DE COMPOSIÇÕES'!$A$10:$F$374,6,FALSE)) -> 21.29 | G27: 21.29 | H27: 1589.94
A28: 2.2 | C28: MOVIMENTAÇÃO DE TERRA
A29: 2.2.1 | B29: CPU_13 | C29: Escavacao, carga e transporte de material de 1a categoria com trator sobre esteiras 347 hp e cacamba 6m3, dmt 50 a 200m | D29: m3 | E29: 597.4 | F29: =IF(B29="","",VLOOKUP(B29,'RELAÇÃO DE COMPOSIÇÕES'!$A$10:$F$374,6,FALSE)) -> 3.9 | G29: 3.9 | H29: 2329.86
A30: 2.3 | C30: PAVIMENTAÇÃO
A31: 2.3.1 | B31: CPU_14 | C31: Regularização manual e compactão com placa vibratótia | D31: m2 | E31: 891.08 | F31: =IF(B31="","",VLOOKUP(B31,'RELAÇÃO DE COMPOSIÇÕES'!$A$10:$F$374,6,FALSE)) -> 5.55 | G31: 5.55 | H31: 4945.49
A32: 2.3.2 | B32: CPU_15 | C32: Pavimento em concreto armado fck=25mpa, desempolado, e=10cm, p/ sobrecargas de até 4t/m2 c/ tela soldada Q138 | D32: m2 | E32: 391.42 | F32: =IF(B32="","",VLOOKUP(B32,'RELAÇÃO DE COMPOSIÇÕES'!$A$10:$F$374,6,FALSE)) -> 76.68 | G32: 76.68 | H32: 30014.09
A33: 2.3.3 | B33: CPU_16 | C33: Pavimentação em concreto usinado, bomb., lançado e adensado, não armado, pigment. BAYFERROX preto ou similar, fck=21Mpa, e = 10cm,regulariz. compac. subleito, lona plástica, incl. juntas serradas 5x10 a 40mm - Rev 03 | D33: m² | E33: 36.48 | F33: =IF(B33="","",VLOOKUP(B33,'RELAÇÃO DE COMPOSIÇÕES'!$A$10:$F$374,6,FALSE)) -> 100.19 | G33: 100.19 | H33: 3654.93
A34: 2.3.4 | B34: CPU_17 | C34: Piso tátil direcional e de alerta, em concreto colorido, p/deficientes visuais, dimensões 30x30cm, aplicado com argamassa industrializada ac-ii, rejuntado, exclusive regularização de base | D34: m2 | E34: 58.08 | F34: =IF(B34="","",VLOOKUP(B34,'RELAÇÃO DE COMPOSIÇÕES'!$A$10:$F$374,6,FALSE)) -> 88.04 | G34: 88.04 | H34: 5113.36
A35: 2.3.5 | B35: CPU_18 | C35: Lastro de brita graduada apiloada e=10cm | D35: m2 | E35: 339.81 | F35: =IF(B35="","",VLOOKUP(B35,'RELAÇÃO DE COMPOSIÇÕES'!$A$10:$F$374,6,FALSE)) -> 21.57 | G35: =IF(B35="","",ROUND(F35*(1+$H$6),2)) -> 21.57 | H35: =IF(B35="","",ROUND(E35*G35,2)) -> 7329.7
A36: 2.3.6 | B36: CPU_19 | C36: Execução de pavimento com aplicação de concreto asfáltico, camada de binder - exclusive carga e transporte. af_11/2019 | D36: m3 | E36: 16.99 | F36: =IF(B36="","",VLOOKUP(B36,'RELAÇÃO DE COMPOSIÇÕES'!$A$10:$F$374,6,FALSE)) -> 933.04 | G36: 933.04 | H36: 15852.35
A37: 2.3.7 | B37: CPU_20 | C37: Execução de pavimento com aplicação de concreto asfáltico, camada de rolamento - exclusive carga e transporte. af_11/2019 | D37: m3 | E37: 16.99 | F37: =IF(B37="","",VLOOKUP(B37,'RELAÇÃO DE COMPOSIÇÕES'!$A$10:$F$374,6,FALSE)) -> 984.91 | G37: 984.91 | H37: 16733.62
A38: 2.3.8 | B38: CPU_21 | C38: Transporte de material asfaltico, com caminhão com capacidade de 30000 l em rodovia pavimentada para distâncias médias de transporte superiores a 100 km. af_02/2016 | D38: txkm | E38: 19573.06 | F38: =IF(B38="","",VLOOKUP(B38,'RELAÇÃO DE COMPOSIÇÕES'!$A$10:$F$374,6,FALSE)) -> 0.48 | G38: 0.48 | H38: 9395.07
A39: 2.3.9 | B39: CPU_22 | C39: Imprimação - execução com fornecimento de material | D39: m2 | E39: 339.81 | F39: =IF(B39="","",VLOOKUP(B39,'RELAÇÃO DE COMPOSIÇÕES'!$A$10:$F$374,6,FALSE)) -> 10.69 | G39: 10.69 | H39: 3632.57
A40: 2.3.10 | B40: CPU_23 | C40: Rampa padrão para acesso de deficientes a passeio público, em concreto simples Fck=25MPa, desempolada, com pintura indicativa em novacor, 02 demãos | D40: un | E40: 1 | F40: =IF(B40="","",VLOOKUP(B40,'RELAÇÃO DE COMPOSIÇÕES'!$A$10:$F$374,6,FALSE)) -> 283.04 | G40: 283.04 | H40: 283.04
A41: 2.3.11 | B41: CPU_24 | C41: Assentamento de guia (meio-fio) em trecho reto, confeccionada em concreto pré-fabricado, dimensões 100x15x13x30 cm (comprimento x base inferior x base superior x altura), para vias urbanas (uso viário). af_06/2016 | D41: m | E41: 184.32 | F41: =IF(B41="","",VLOOKUP(B41,'RELAÇÃO DE COMPOSIÇÕES'!$A$10:$F$374,6,FALSE)) -> 29.44 | G41: 29.44 | H41: 5426.38
A42: 2.4 | C42: COBERTURA
A43: 2.4.1 | B43: CPU_25 | C43: Escavação manual de vala ou cava em material de 1ª categoria, profundidade até 1,50m | D43: m3 | E43: 10.98 | F43: =IF(B43="","",VLOOKUP(B43,'RELAÇÃO DE COMPOSIÇÕES'!$A$10:$F$374,6,FALSE)) -> 42.12 | G43: 42.12 | H43: 462.48
A44: 2.4.2 | B44: CPU_26 | C44: Concreto Armado fck=21,0MPa, usinado, bombeado, adensado e lançado, para Uso Geral, com formas planas em compensado resinado 12mm (05 usos) | D44: m3 | E44: 6.91 | F44: =IF(B44="","",VLOOKUP(B44,'RELAÇÃO DE COMPOSIÇÕES'!$A$10:$F$374,6,FALSE)) -> 1647.33 | G44: 1647.33 | H44: 11383.05
A45: 2.4.3 | B45: CPU_27 | C45: Estrutura Metálica p/ Cobertura c/Vigas-Treliça Pratt UDC75 e terças em UDC 127, 2 águas, sem lanternin, vãos 6,0 a 10,0m, pintado 1 d oxido ferro + 2 d esmalte epóxi branco, exceto forn. Telhas - Executada | D45: m2 | E45: 897.6 | F45: =IF(B45="","",VLOOKUP(B45,'RELAÇÃO DE COMPOSIÇÕES'!$A$10:$F$374,6,FALSE)) -> 124.07 | G45: 124.07 | H45: 111365.23
A46: 2.4.4 | B46: CPU_28 | C46: Telhamento com telha metálica em chapa de aço galvanizado natural ondulada e=0,5mm | D46: m² | E46: 897.6 | F46: =IF(B46="","",VLOOKUP(B46,'RELAÇÃO DE COMPOSIÇÕES'!$A$10:$F$374,6,FALSE)) -> 55.77 | G46: 55.77 | H46: 50059.15
A47: 2.4.5 | B47: CPU_29 | C47: Fornecimento e instalação de brise metálico de alumínio ref. 84F, 45º L, da Fibrocell ou similar | D47: m2 | E47: 149.8 | F47: =IF(B47="","",VLOOKUP(B47,'RELAÇÃO DE COMPOSIÇÕES'!$A$10:$F$374,6,FALSE)) -> 210.14 | G47: 210.14 | H47: 31478.97
A48: 2.5 | C48: ESCADA E RAMPA
A49: 2.5.1 | B49: CPU_30 | C49: Escavação manual de vala ou cava em material de 1ª categoria, profundidade até 1,50m | D49: m3 | E49: 25.71 | F49: =IF(B49="","",VLOOKUP(B49,'RELAÇÃO DE COMPOSIÇÕES'!$A$10:$F$374,6,FALSE)) -> 42.12 | G49: 42.12 | H49: 1082.91
A50: 2.5.2 | B50: CPU_31 | C50: Alvenaria pedra calcárea argamassada c/ cimento e areia traço t-4 (1:5) - 1 saco cimento 50kg / 5 padiolas areia dim. 0,35z0,45x0,23m - Confecção mecânica e transporte | D50: m3 | E50: 14.28 | F50: =IF(B50="","",VLOOKUP(B50,'RELAÇÃO DE COMPOSIÇÕES'!$A$10:$F$374,6,FALSE)) -> 381.53 | G50: 381.53 | H50: 5448.25
A51: 2.5.3 | B51: CPU_32 | C51: Alvenaria bloco cerâmico vedação, 9x19x24cm, e=19cm, com argamassa t5 - 1:2:8 (cimento/cal/areia), junta=1cm - Rev.08 | D51: m2 | E51: 139.34 | F51: =IF(B51="","",VLOOKUP(B51,'RELAÇÃO DE COMPOSIÇÕES'!$A$10:$F$374,6,FALSE)) -> 72.44 | G51: 72.44 | H51: 10093.79
A52: 2.5.4 | B52: CPU_33 | C52: Chapisco em parede com argamassa traço t1 - 1:3 (cimento / areia) - Revisado 08/2015 | D52: m2 | E52: 69.67 | F52: =IF(B52="","",VLOOKUP(B52,'RELAÇÃO DE COMPOSIÇÕES'!$A$10:$F$374,6,FALSE)) -> 5.14 | G52: 5.14 | H52: 358.1
A53: 2.5.5 | B53: CPU_34 | C53: Reboco ou emboço externo, de parede, com argamassa traço t5 - 1:2:8 (cimento / cal / areia), espessura 2,0 cm | D53: m2 | E53: 69.67 | F53: =IF(B53="","",VLOOKUP(B53,'RELAÇÃO DE COMPOSIÇÕES'!$A$10:$F$374,6,FALSE)) -> 27.21 | G53: 27.21 | H53: 1895.72
A54: 2.5.6 | B54: CPU_35 | C54: Aterro manual de áreas, sem aquisição de material, com espalhamento e compactação | D54: m3 | E54: 116.86 | F54: =IF(B54="","",VLOOKUP(B54,'RELAÇÃO DE COMPOSIÇÕES'!$A$10:$F$374,6,FALSE)) -> 42.12 | G54: 42.12 | H54: 4922.14
A55: 2.5.7 | B55: CPU_36 | C55: Pavimento em concreto armado fck=25mpa, desempolado, e=10cm, p/ sobrecargas de até 4t/m2 c/ tela soldada Q138 | D55: m2 | E55: 119.86 | F55: =IF(B55="","",VLOOKUP(B55,'RELAÇÃO DE COMPOSIÇÕES'!$A$10:$F$374,6,FALSE)) -> 76.68 | G55: 76.68 | H55: 9190.86
A56: 2.6 | C56: INSTALAÇÕES DE COMBATE A INCÊNDIO
A57: 2.6.1 | B57: CPU_37 | C57: Extintor de incendio portatil com carga de po quimico seco (pqs) de 8 kg, classe bc | D57: un | E57: 4 | F57: =IF(B57="","",VLOOKUP(B57,'RELAÇÃO DE COMPOSIÇÕES'!$A$10:$F$374,6,FALSE)) -> 192.72 | G57: 192.72 | H57: 770.88
A58: 2.6.2 | B58: CPU_38 | C58: Placa de indicativa de "EXTINTOR" em pvc, dim.: 20 x 20 cm | D58: Un | E58: 4 | F58: =IF(B58="","",VLOOKUP(B58,'RELAÇÃO DE COMPOSIÇÕES'!$A$10:$F$374,6,FALSE)) -> 20.18 | G58: 20.18 | H58: 80.72
A59: 2.6.3 | B59: CPU_39 | C59: Luminaria de emergencia 30 leds, potencia 2 w, bateria de litio, autonomia de 6 horas | D59: un | E59: 7 | F59: =IF(B59="","",VLOOKUP(B59,'RELAÇÃO DE COMPOSIÇÕES'!$A$10:$F$374,6,FALSE)) -> 22.66 | G59: 22.66 | H59: 158.62
A60: 2.7 | C60: DIVERSOS
A61: 2.7.1 | B61: CPU_40 | C61: Demarcação de pavimentos com pintura de 1 demão de resina acrílica, e aplicação de micro-esferas para sinalização horizontal (Estacionamentos, faixas de pedrestres, etc.) | D61: m2 | E61: 67.52 | F61: =IF(B61="","",VLOOKUP(B61,'RELAÇÃO DE COMPOSIÇÕES'!$A$10:$F$374,6,FALSE)) -> 12.54 | G61: 12.54 | H61: 846.7
A62: 2.7.2 | B62: CPU_41 | C62: Corrimão em tubo ferro galvanizado, alt=0,92m, com barras verticais dupla (2") e barras horizontais nas extremidades de 2", inclusive curva em aço (padrão) - para deficientes físicos | D62: m | E62: 76.63 | F62: =IF(B62="","",VLOOKUP(B62,'RELAÇÃO DE COMPOSIÇÕES'!$A$10:$F$374,6,FALSE)) -> 178.49 | G62: 178.49 | H62: 13677.69
A63: 2.7.3 | B63: CPU_42 | C63: Banco de concreto em alvenaria de tijolos, assento em concreto armado, sem encosto, pintado com tinta acrílica, 2 demãos | D63: m | E63: 32.76 | F63: =IF(B63="","",VLOOKUP(B63,'RELAÇÃO DE COMPOSIÇÕES'!$A$10:$F$374,6,FALSE)) -> 147.97 | G63: 147.97 | H63: 4847.5
A64: 2.7.4 | B64: CPU_43 | C64: Grama esmeralda em placas, fornecimento e plantio | D64: m2 | E64: 13.26 | F64: =IF(B64="","",VLOOKUP(B64,'RELAÇÃO DE COMPOSIÇÕES'!$A$10:$F$374,6,FALSE)) -> 14.86 | G64: 14.86 | H64: 197.04
A65: 2.7.5 | B65: CPU_44 | C65: Lixeira em fibra de vidro, com capacidade 50l, com suporte (poste), FIOBERGLASS, REF. CLPD1085 ou similar | D65: un | E65: 4 | F65: =IF(B65="","",VLOOKUP(B65,'RELAÇÃO DE COMPOSIÇÕES'!$A$10:$F$374,6,FALSE)) -> 351.82 | G65: 351.82 | H65: 1407.28
A66: 2.7.6 | B66: CPU_45 | C66: Placa de inauguração de obra em alumínio 0,60 x 0,80 m | D66: un | E66: 1 | F66: =IF(B66="","",VLOOKUP(B66,'RELAÇÃO DE COMPOSIÇÕES'!$A$10:$F$374,6,FALSE)) -> 1492.84 | G66: 1492.84 | H66: 1492.84
A67: 2.7.7 | B67: CPU_46 | C67: Limpeza geral | D67: m2 | E67: 585.74 | F67: =IF(B67="","",VLOOKUP(B67,'RELAÇÃO DE COMPOSIÇÕES'!$A$10:$F$374,6,FALSE)) -> 1.87 | G67: 1.87 | H67: 1095.33
A68: 3 | C68: REFORMA DA PRAÇA TENISSON FONTES - ETAPA 1 - PRAÇA DE ALIMENTAÇÃO
A69: 3.1 | C69: PRAÇA DE ALIMENTAÇÃO
A70: 3.1.1 | C70: DEMOLIÇÕES/REMOÇÕES/RETIRADAS
A71: 3.1.1.1 | B71: CPU_47 | C71: Demolição de pavimentação em paralelepípedo sem reaproveitamento | D71: m2 | E71: 594.19 | F71: =IF(B71="","",VLOOKUP(B71,'RELAÇÃO DE COMPOSIÇÕES'!$A$10:$F$374,6,FALSE)) -> 9.46 | G71: 9.46 | H71: 5621.04
A72: 3.1.1.2 | B72: CPU_48 | C72: Demolição de reboco | D72: m2 | E72: 455.46 | F72: =IF(B72="","",VLOOKUP(B72,'RELAÇÃO DE COMPOSIÇÕES'!$A$10:$F$374,6,FALSE)) -> 7.01 | G72: 7.01 | H72: 3192.77
A73: 3.1.1.3 | B73: CPU_49 | C73: Demolição de madeiramento em coberturas com telhas cerâmicas | D73: m2 | E73: 351.49 | F73: =IF(B73="","",VLOOKUP(B73,'RELAÇÃO DE COMPOSIÇÕES'!$A$10:$F$374,6,FALSE)) -> 20.64 | G73: 20.64 | H73: 7254.75
A74: 3.1.1.4 | B74: CPU_50 | C74: Remoção de telhamento com telhas cerâmicas | D74: m2 | E74: 351.49 | F74: =IF(B74="","",VLOOKUP(B74,'RELAÇÃO DE COMPOSIÇÕES'!$A$10:$F$374,6,FALSE)) -> 9.46 | G74: 9.46 | H74: 3325.1
A75: 3.1.1.5 | B75: CPU_51 | C75: Demolição manual de piso cimentado sobre lastro de concreto - Rev 01 | D75: m2 | E75: 198.9 | F75: =IF(B75="","",VLOOKUP(B75,'RELAÇÃO DE COMPOSIÇÕES'!$A$10:$F$374,6,FALSE)) -> 20.64 | G75: 20.64 | H75: 4105.3
A76: 3.1.1.6 | B76: CPU_52 | C76: Carga manual de entulho em caminhao basculante 6 m3 | D76: m3 | E76: 121.03 | F76: =IF(B76="","",VLOOKUP(B76,'RELAÇÃO DE COMPOSIÇÕES'!$A$10:$F$374,6,FALSE)) -> 21.29 | G76: 21.29 | H76: 2576.73
A77: 3.1.2 | C77: ELEVAÇÕES
A78: 3.1.2.1 | B78: CPU_53 | C78: Alvenaria bloco cerâmico vedação, 9x19x24cm, e=24cm, com argamassa t5 - 1:2:8 (cimento/cal/areia), junta=2cm | D78: m2 | E78: 39.7 | F78: =IF(B78="","",VLOOKUP(B78,'RELAÇÃO DE COMPOSIÇÕES'!$A$10:$F$374,6,FALSE)) -> 104.31 | G78: 104.31 | H78: 4141.11
A79: 3.1.2.2 | B79: CPU_54 | C79: Chapisco em parede com argamassa traço t1 - 1:3 (cimento / areia) - Revisado 08/2015 | D79: m2 | E79: 425.24 | F79: =IF(B79="","",VLOOKUP(B79,'RELAÇÃO DE COMPOSIÇÕES'!$A$10:$F$374,6,FALSE)) -> 5.14 | G79: 5.14 | H79: 2185.73
A80: 3.1.2.3 | B80: CPU_55 | C80: Chapisco em parede, rústico, com argamassa traço t1 - 1:3 (cimento / areia) - revisado 08/2015 | D80: m2 | E80: 109.62 | F80: =IF(B80="","",VLOOKUP(B80,'RELAÇÃO DE COMPOSIÇÕES'!$A$10:$F$374,6,FALSE)) -> 15.68 | G80: 15.68 | H80: 1718.84
A81: 3.1.2.4 | B81: CPU_56 | C81: Cobogó de cimento, tipo "escama", dim: 50 x 50cm | D81: m2 | E81: 1 | F81: =IF(B81="","",VLOOKUP(B81,'RELAÇÃO DE COMPOSIÇÕES'!$A$10:$F$374,6,FALSE)) -> 100.85 | G81: 100.85 | H81: 100.85
A82: 3.1.2.5 | B82: CPU_57 | C82: Reboco ou emboço interno, de parede, com argamassa traço t6 - 1:2:10 (cimento / cal / areia), espessura 1,5 cm | D82: m2 | E82: 425.24 | F82: =IF(B82="","",VLOOKUP(B82,'RELAÇÃO DE COMPOSIÇÕES'!$A$10:$F$374,6,FALSE)) -> 24.61 | G82: 24.61 | H82: 10465.16
A83: 3.1.3 | C83: COBERTURA
A84: 3.1.3.1 | B84: CPU_58 | C84: Madeiramento em massaranduba para telhado, peça principal serrada 14cm x 25cm, com abertura de encaixes | D84: m | E84: 139 | F84: =IF(B84="","",VLOOKUP(B84,'RELAÇÃO DE COMPOSIÇÕES'!$A$10:$F$374,6,FALSE)) -> 232.36 | G84: 232.36 | H84: 32298.04
A85: 3.1.3.2 | B85: CPU_59 | C85: Madeiramento em massaranduba/madeira de lei, acabamento serrado c/ riipão 5x3 e ripa 5x1,5, exclusive peças principais | D85: m2 | E85: 361.36 | F85: =IF(B85="","",VLOOKUP(B85,'RELAÇÃO DE COMPOSIÇÕES'!$A$10:$F$374,6,FALSE)) -> 75.92 | G85: 75.92 | H85: 27434.45
A86: 3.1.3.3 | B86: CPU_60 | C86: Telhamento com telha cerâmica tipo colonial, 1ª qualid, cor clara, Itabaianinha ou similar - Rev 02 | D86: m2 | E86: 361.36 | F86: =IF(B86="","",VLOOKUP(B86,'RELAÇÃO DE COMPOSIÇÕES'!$A$10:$F$374,6,FALSE)) -> 66.56 | G86: 66.56 | H86: 24052.12
A87: 3.1.3.4 | B87: CPU_61 | C87: Forro em réguas de pvc, frisado, para ambientes comerciais, inclusive estrutura de fixação. af_05/2017_p | D87: m2 | E87: 230.54 | F87: =IF(B87="","",VLOOKUP(B87,'RELAÇÃO DE COMPOSIÇÕES'!$A$10:$F$374,6,FALSE)) -> 53.22 | G87: 53.22 | H87: 12269.34
A88: 3.1.4 | C88: PAVIMENTAÇÕES | F88: =IF(B88="","",VLOOKUP(B88,'RELAÇÃO DE COMPOSIÇÕES'!$A$10:$F$374,6,FALSE)) -> 
A89: 3.1.4.1 | B89: CPU_62 | C89: Regularização Manual | D89: m2 | E89: 288.97 | F89: =IF(B89="","",VLOOKUP(B89,'RELAÇÃO DE COMPOSIÇÕES'!$A$10:$F$374,6,FALSE)) -> 4.2 | G89: 4.2 | H89: 1213.67
A90: 3.1.4.2 | B90: CPU_63 | C90: Lastro de brita graduada apiloada e=10cm | D90: m2 | E90: 615.52 | F90: =IF(B90="","",VLOOKUP(B90,'RELAÇÃO DE COMPOSIÇÕES'!$A$10:$F$374,6,FALSE)) -> 21.57 | G90: 21.57 | H90: 13276.77
A91: 3.1.4.3 | B91: CPU_64 | C91: Piso em concreto simples desempolado, fck = 21 MPa, e = 10 cm - Não inclui formas para juntas de concretagem | D91: m² | E91: 288.97 | F91: =IF(B91="","",VLOOKUP(B91,'RELAÇÃO DE COMPOSIÇÕES'!$A$10:$F$374,6,FALSE)) -> 52.29 | G91: 52.29 | H91: 15110.24
A92: 3.1.4.4 | B92: CPU_65 | C92: Meio-fio de concreto simples, rejuntado com argamassa de cimento e areia no traço 1:3 | D92: m | E92: 92.83 | F92: =IF(B92="","",VLOOKUP(B92,'RELAÇÃO DE COMPOSIÇÕES'!$A$10:$F$374,6,FALSE)) -> 24.85 | G92: 24.85 | H92: 2306.83
A93: 3.1.4.5 | B93: CPU_66 | C93: Piso alta resistencia, colorido, e=10mm, aplicado com juntas, polido até o esmeril 400 e encerado | D93: m2 | E93: 275.7 | F93: =IF(B93="","",VLOOKUP(B93,'RELAÇÃO DE COMPOSIÇÕES'!$A$10:$F$374,6,FALSE)) -> 42.99 | G93: 42.99 | H93: 11852.34
A94: 3.1.4.6 | B94: CPU_67 | C94: Pavimentação em concreto usinado, bomb., lançado e adensado, não armado, pigment. BAYFERROX preto ou similar, fck=21Mpa, e = 10cm,regulariz. compac. subleito, lona plástica, incl. juntas serradas 5x10 a 40mm - Rev 03 (CINZA) | D94: m² | E94: 20 | F94: =IF(B94="","",VLOOKUP(B94,'RELAÇÃO DE COMPOSIÇÕES'!$A$10:$F$374,6,FALSE)) -> 100.19 | G94: 100.19 | H94: 2003.8
A95: 3.1.4.7 | B95: CPU_68 | C95: Pavimentação em concreto usinado, bomb., lançado e adensado, não armado, pigment. BAYFERROX preto ou similar, fck=21Mpa, e = 10cm,regulariz. compac. subleito, lona plástica, incl. juntas serradas 5x10 a 40mm - Rev 03 (VERMELHO) | D95: m² | E95: 30.85 | F95: =IF(B95="","",VLOOKUP(B95,'RELAÇÃO DE COMPOSIÇÕES'!$A$10:$F$374,6,FALSE)) -> 100.19 | G95: 100.19 | H95: 3090.86
A96: 3.1.4.8 | B96: CPU_69 | C96: Revestimento cerâmico para piso ou parede, 53 x 53 cm, Arielle, linha atenas, cor cinza ou bege, ou similar, PEI-5, aplicado com argamassa industrializada ac-ii, rejuntado, exclusive regularização de base ou emboço | D96: m2 | E96: 49.45 | F96: =IF(B96="","",VLOOKUP(B96,'RELAÇÃO DE COMPOSIÇÕES'!$A$10:$F$374,6,FALSE)) -> 43.98 | G96: 43.98 | H96: 2174.81
A97: 3.1.4.9 | B97: CPU_70 | C97: Canaleta de drenagem em alvenaria de tijolo maciço, dimensões internas 40 x 50cm, com tampa de concreto, inclusive escavação manual | D97: m | E97: 69.5 | F97: =IF(B97="","",VLOOKUP(B97,'RELAÇÃO DE COMPOSIÇÕES'!$A$10:$F$374,6,FALSE)) -> 257.45 | G97: 257.45 | H97: 17892.78
A98: 3.1.5 | C98: REVESTIMENTO BOXES E BANHEIROS
A99: 3.1.5.1 | B99: CPU_71 | C99: Revestimento cerâmico para piso ou parede, 20 x 20 cm, Elizabeth ou similar, linha Cristal Branco, aplicado c/argamassa industrializada ac-ii, rejuntado, exclusive regularização de base ou emboço | D99: m2 | E99: 346.59 | F99: =IF(B99="","",VLOOKUP(B99,'RELAÇÃO DE COMPOSIÇÕES'!$A$10:$F$374,6,FALSE)) -> 43.45 | G99: =IF(B99="","",ROUND(F99*(1+$H$6),2)) -> 43.45 | H99: =IF(B99="","",ROUND(E99*G99,2)) -> 15059.34
A100: 3.1.6 | C100: ESQUADRIAS
A101: 3.1.6.1 | B101: CPU_72 | C101: Soleira em granito branco fortaleza, l = 15 cm, e = 2 cm | D101: m | E101: 5.8 | F101: =IF(B101="","",VLOOKUP(B101,'RELAÇÃO DE COMPOSIÇÕES'!$A$10:$F$374,6,FALSE)) -> 60.29 | G101: 60.29 | H101: 349.68
A102: 3.1.6.2 | B102: CPU_73 | C102: Reboco ou emboço interno, de parede, com argamassa traço t6 - 1:2:10 (cimento / cal / areia), espessura 1,5 cm | D102: m2 | E102: 9.83 | F102: =IF(B102="","",VLOOKUP(B102,'RELAÇÃO DE COMPOSIÇÕES'!$A$10:$F$374,6,FALSE)) -> 24.61 | G102: 24.61 | H102: 241.92
A103: 3.1.6.3 | B103: CPU_74 | C103: Divisória em granito bege ipanema polido, e=3cm , inclusive montagem com ferragens | D103: m2 | E103: 17.48 | F103: =IF(B103="","",VLOOKUP(B103,'RELAÇÃO DE COMPOSIÇÕES'!$A$10:$F$374,6,FALSE)) -> 351.31 | G103: 351.31 | H103: 6140.9
A104: 3.1.6.4 | B104: CPU_75 | C104: Porta em madeira compensada (canela), lisa, semi-ôca, (0,60 x 1,60 a 1,80m), p/pintura, inclusive ferragens (livre/ocupado), exclusive batente, para uso em divisórias granito ou marmore | D104: un | E104: 6 | F104: =IF(B104="","",VLOOKUP(B104,'RELAÇÃO DE COMPOSIÇÕES'!$A$10:$F$374,6,FALSE)) -> 798.07 | G104: 798.07 | H104: 4788.42
A105: 3.1.6.5 | B105: CPU_76 | C105: Porta em madeira compensada (canela), lisa, semi-ôca, 0.90 x 2.10 m, para sanitário de deficiente físico (inclusive batente, ferragens, fechadura, suporte e chapa de alumínio e=1mm) - Rev 03 | D105: un | E105: 2 | F105: =IF(B105="","",VLOOKUP(B105,'RELAÇÃO DE COMPOSIÇÕES'!$A$10:$F$374,6,FALSE)) -> 894.58 | G105: 894.58 | H105: 1789.16
A106: 3.1.6.6 | B106: CPU_77 | C106: Porta em madeira compensada (canela), lisa, semi-ôca, 0.80 x 2.10 m, inclusive batente e ferragens | D106: un | E106: 5 | F106: =IF(B106="","",VLOOKUP(B106,'RELAÇÃO DE COMPOSIÇÕES'!$A$10:$F$374,6,FALSE)) -> 530.63 | G106: 530.63 | H106: 2653.15
A107: 3.1.6.7 | B107: CPU_78 | C107: Porta em aço, em chapa galvanizada nº24, raiada, de enrolar | D107: m2 | E107: 129.84 | F107: =IF(B107="","",VLOOKUP(B107,'RELAÇÃO DE COMPOSIÇÕES'!$A$10:$F$374,6,FALSE)) -> 195.69 | G107: 195.69 | H107: 25408.39
A108: 3.1.6.8 | B108: CPU_79 | C108: Portão em chapa de ferro veneziana tipo Z inclusive dobradiças, ferrolhos e chumbadores em chapa de ferro e=5mm | D108: m2 | E108: 36 | F108: =IF(B108="","",VLOOKUP(B108,'RELAÇÃO DE COMPOSIÇÕES'!$A$10:$F$374,6,FALSE)) -> 527.54 | G108: 527.54 | H108: 18991.44
A109: 3.1.7 | C109: PINTURA
A110: 3.1.7.1 | B110: CPU_80 | C110: Pintura para exteriores, sobre paredes, com lixamento, aplicação de 01 demão de selador acrílico, 01 demão de textura acrílica branca e 02 demãos de tinta acrílica convencional | D110: m2 | E110: 334.59 | F110: =IF(B110="","",VLOOKUP(B110,'RELAÇÃO DE COMPOSIÇÕES'!$A$10:$F$374,6,FALSE)) -> 34 | G110: 34 | H110: 11376.06
A111: 3.1.7.2 | B111: CPU_81 | C111: Pintura acrilica em piso cimentado duas demaos (CHAPISCO FACHADA) | D111: m2 | E111: 78.1 | F111: =IF(B111="","",VLOOKUP(B111,'RELAÇÃO DE COMPOSIÇÕES'!$A$10:$F$374,6,FALSE)) -> 13.9 | G111: 13.9 | H111: 1085.59
A112: 3.1.7.3 | B112: CPU_82 | C112: Pintura para interiores, sobre paredes ou tetos, com lixamento, aplicação de 01 demão de líquido selador acrílico, 01 demão de textura acrílica branca e 02 demãos de tinta pva latex convencional para interiores | D112: m2 | E112: 86.78 | F112: =IF(B112="","",VLOOKUP(B112,'RELAÇÃO DE COMPOSIÇÕES'!$A$10:$F$374,6,FALSE)) -> 33.5 | G112: 33.5 | H112: 2907.13
A113: 3.1.7.4 | B113: CPU_83 | C113: Pintura de proteção sobre superfícies metálicas com aplicação de 01 demão de tinta anti-corrosiva zarcão - R2 | D113: m2 | E113: 331.67 | F113: =IF(B113="","",VLOOKUP(B113,'RELAÇÃO DE COMPOSIÇÕES'!$A$10:$F$374,6,FALSE)) -> 8.15 | G113: 8.15 | H113: 2703.11
A114: 3.1.7.5 | B114: CPU_84 | C114: Pintura de acabamento com aplicação de 02 demãos de esmalte sobre superfícies metálicas - R1 | D114: m2 | E114: 331.67 | F114: =IF(B114="","",VLOOKUP(B114,'RELAÇÃO DE COMPOSIÇÕES'!$A$10:$F$374,6,FALSE)) -> 14.8 | G114: 14.8 | H114: 4908.72
A115: 3.1.7.6 | B115: CPU_85 | C115: Pintura de acabamento com lixamento e aplicação de 02 demãos de esmalte sintético sobre madeira - R1 | D115: m2 | E115: 17.94 | F115: =IF(B115="","",VLOOKUP(B115,'RELAÇÃO DE COMPOSIÇÕES'!$A$10:$F$374,6,FALSE)) -> 14.97 | G115: 14.97 | H115: 268.56
A116: 3.1.8 | C116: PAISAGISMO
A117: 3.1.8.1 | B117: CPU_86 | C117: Grama esmeralda em placas, fornecimento e plantio | D117: m2 | E117: 85.76 | F117: =IF(B117="","",VLOOKUP(B117,'RELAÇÃO DE COMPOSIÇÕES'!$A$10:$F$374,6,FALSE)) -> 14.86 | G117: 14.86 | H117: 1274.39
A118: 3.1.8.2 | B118: CPU_87 | C118: Fornecimento e plantio de herbáceas ornamentais (pingo de ouro) | D118: un | E118: 20 | F118: =IF(B118="","",VLOOKUP(B118,'RELAÇÃO DE COMPOSIÇÕES'!$A$10:$F$374,6,FALSE)) -> 2.45 | G118: 2.45 | H118: 49
A119: 3.1.8.3 | B119: CPU_88 | C119: Fornecimento e plantio de palmeira mini imperial, média | D119: un | E119: 4 | F119: =IF(B119="","",VLOOKUP(B119,'RELAÇÃO DE COMPOSIÇÕES'!$A$10:$F$374,6,FALSE)) -> 94.83 | G119: 94.83 | H119: 379.32
A120: 3.1.9 | C120: DIVERSOS
A121: 3.1.9.1 | B121: CPU_89 | C121: Corrimão duplo central em tubo de ferro galvanizado 1 1/2", com chumbadores para fixação no piso | D121: m | E121: 3.9 | F121: =IF(B121="","",VLOOKUP(B121,'RELAÇÃO DE COMPOSIÇÕES'!$A$10:$F$374,6,FALSE)) -> 243.13 | G121: 243.13 | H121: 948.21
A122: 3.1.9.2 | B122: CPU_90 | C122: Lixeira em fibra de vidro, com capacidade 50l, com suporte (poste), FIOBERGLASS, REF. CLPD1085 ou similar | D122: un | E122: 4 | F122: =IF(B122="","",VLOOKUP(B122,'RELAÇÃO DE COMPOSIÇÕES'!$A$10:$F$374,6,FALSE)) -> 351.82 | G122: 351.82 | H122: 1407.28
A123: 3.1.9.3 | B123: CPU_91 | C123: Banco de concreto pre-moldado com encosto e pintura (padrão emurb) | D123: un | E123: 4 | F123: =IF(B123="","",VLOOKUP(B123,'RELAÇÃO DE COMPOSIÇÕES'!$A$10:$F$374,6,FALSE)) -> 724.36 | G123: 724.36 | H123: 2897.44
A124: 3.1.9.4 | B124: CPU_92 | C124: Banco de concreto em alvenaria de tijolos, assento em concreto armado, sem encosto, pintado com tinta acrílica, 2 demãos | D124: m | E124: 12 | F124: =IF(B124="","",VLOOKUP(B124,'RELAÇÃO DE COMPOSIÇÕES'!$A$10:$F$374,6,FALSE)) -> 147.97 | G124: 147.97 | H124: 1775.64
A125: 3.1.9.5 | B125: CPU_93 | C125: Placa de inauguração de obra em alumínio 0,60 x 0,80 m | D125: un | E125: 1 | F125: =IF(B125="","",VLOOKUP(B125,'RELAÇÃO DE COMPOSIÇÕES'!$A$10:$F$374,6,FALSE)) -> 1492.84 | G125: 1492.84 | H125: 1492.84
A126: 3.1.9.6 | B126: CPU_94 | C126: Limpeza geral | D126: m2 | E126: 826.7 | F126: =IF(B126="","",VLOOKUP(B126,'RELAÇÃO DE COMPOSIÇÕES'!$A$10:$F$374,6,FALSE)) -> 1.87 | G126: 1.87 | H126: 1545.93
A127: 3.2 | C127: INSTALAÇÕES HIDRÁULICAS
A128: 3.2.1 | B128: CPU_95 | C128: Registro gaveta bruto 1/2" (ref 1510 hd) Deca ou similar | D128: un | E128: 4 | F128: =IF(B128="","",VLOOKUP(B128,'RELAÇÃO DE COMPOSIÇÕES'!$A$10:$F$374,6,FALSE)) -> 40.04 | G128: 40.04 | H128: 160.16
A129: 3.2.2 | B129: CPU_96 | C129: Adaptador de pvc rígido soldável c/ flanges livres p/ caixa de água diâm = 20mm x 1/2" | D129: un | E129: 4 | F129: =IF(B129="","",VLOOKUP(B129,'RELAÇÃO DE COMPOSIÇÕES'!$A$10:$F$374,6,FALSE)) -> 10.21 | G129: 10.21 | H129: 40.84
A130: 3.2.3 | B130: CPU_97 | C130: Adaptador de pvc rígido soldável curto c/ bolsa e rosca p/ registro diâm = 20mm x 1/2" | D130: un | E130: 8 | F130: =IF(B130="","",VLOOKUP(B130,'RELAÇÃO DE COMPOSIÇÕES'!$A$10:$F$374,6,FALSE)) -> 6.69 | G130: 6.69 | H130: 53.52
A131: 3.2.4 | B131: CPU_98 | C131: Curva 45º de pvc rígido soldável, marrom diâm = 20mm | D131: un | E131: 1 | F131: =IF(B131="","",VLOOKUP(B131,'RELAÇÃO DE COMPOSIÇÕES'!$A$10:$F$374,6,FALSE)) -> 7.48 | G131: 7.48 | H131: 7.48
A132: 3.2.5 | B132: CPU_99 | C132: Curva 90º de pvc rígido soldável, marrom diâm = 20mm | D132: un | E132: 14 | F132: =IF(B132="","",VLOOKUP(B132,'RELAÇÃO DE COMPOSIÇÕES'!$A$10:$F$374,6,FALSE)) -> 7.9 | G132: 7.9 | H132: 110.6
A133: 3.2.6 | B133: CPU_100 | C133: Luva de pvc rígido soldável, marrom, diâm = 20mm | D133: un | E133: 2 | F133: =IF(B133="","",VLOOKUP(B133,'RELAÇÃO DE COMPOSIÇÕES'!$A$10:$F$374,6,FALSE)) -> 3.57 | G133: 3.57 | H133: 7.14
A134: 3.2.7 | B134: CPU_101 | C134: Tubo pvc rígido soldável marrom p/ água, d = 20 mm (1/2") | D134: m | E134: 70.8 | F134: =IF(B134="","",VLOOKUP(B134,'RELAÇÃO DE COMPOSIÇÕES'!$A$10:$F$374,6,FALSE)) -> 8.94 | G134: 8.94 | H134: 632.95
A135: 3.2.8 | B135: CPU_102 | C135: Tubo pvc rígido soldável marrom p/ água, d = 50 mm (1 1/2") | D135: m | E135: 0.5 | F135: =IF(B135="","",VLOOKUP(B135,'RELAÇÃO DE COMPOSIÇÕES'!$A$10:$F$374,6,FALSE)) -> 34.09 | G135: 34.09 | H135: 17.05
A136: 3.2.9 | B136: CPU_103 | C136: Tê 90º de pvc rígido soldável, marrom diâm = 20mm | D136: un | E136: 3 | F136: =IF(B136="","",VLOOKUP(B136,'RELAÇÃO DE COMPOSIÇÕES'!$A$10:$F$374,6,FALSE)) -> 7.44 | G136: 7.44 | H136: 22.32
A137: 3.2.10 | B137: CPU_104 | C137: Tê 90º de pvc rígido soldável, marrom diâm = 50mm | D137: un | E137: 4 | F137: =IF(B137="","",VLOOKUP(B137,'RELAÇÃO DE COMPOSIÇÕES'!$A$10:$F$374,6,FALSE)) -> 18.52 | G137: 18.52 | H137: 74.08
A138: 3.2.11 | B138: CPU_105 | C138: Cuba de aço inox 304, dimensões 34 x 56cm, para instalação em bancada, c/ válvula cromada (deca ref 1623), sifão cromado (deca ref c1680), torneira cromada (deca linha c40 ref1159) e engate de plástico ou similares | D138: un | E138: 16 | F138: =IF(B138="","",VLOOKUP(B138,'RELAÇÃO DE COMPOSIÇÕES'!$A$10:$F$374,6,FALSE)) -> 485.99 | G138: 485.99 | H138: 7775.84
A139: 3.2.12 | B139: CPU_106 | C139: Bancada em granito branco fortaleza, e = 2cm | D139: m2 | E139: 32.2 | F139: =IF(B139="","",VLOOKUP(B139,'RELAÇÃO DE COMPOSIÇÕES'!$A$10:$F$374,6,FALSE)) -> 373.35 | G139: 373.35 | H139: 12021.87
A140: 3.2.13 | B140: CPU_107 | C140: Cuba de embutir, oval, CELITE 10116 ou similar, inclusive sifão cromado, válvula cromada para lavatório, engate cromado | D140: un | E140: 10 | F140: =IF(B140="","",VLOOKUP(B140,'RELAÇÃO DE COMPOSIÇÕES'!$A$10:$F$374,6,FALSE)) -> 323.14 | G140: 323.14 | H140: 3231.4
A141: 3.2.14 | B141: CPU_108 | C141: Lavatório louça (Deca-Ravena ref L-91 ou similares) sem coluna, c/ sifão cromado, válvula cromada, engate cromado, exclusive torneira | D141: un | E141: 3 | F141: =IF(B141="","",VLOOKUP(B141,'RELAÇÃO DE COMPOSIÇÕES'!$A$10:$F$374,6,FALSE)) -> 425.92 | G141: 425.92 | H141: 1277.76
A142: 3.2.15 | B142: CPU_109 | C142: Mictório de louça branca com sifão integrado, engate flexivel cromado 1/2", registro de pressão 1/2" com canopla cromada acabamento simples e conjunto de fixação | D142: un | E142: 3 | F142: =IF(B142="","",VLOOKUP(B142,'RELAÇÃO DE COMPOSIÇÕES'!$A$10:$F$374,6,FALSE)) -> 471.35 | G142: 471.35 | H142: 1414.05
A143: 3.2.16 | B143: CPU_110 | C143: Tanque de louça branca suspenso, 18l ou equivalente, incluso sifão tipo garrafa em pvc, válvula plástica e torneira de metal cromado padrão popular - fornecimento e instalação. af_01/2020 | D143: un | E143: 2 | F143: =IF(B143="","",VLOOKUP(B143,'RELAÇÃO DE COMPOSIÇÕES'!$A$10:$F$374,6,FALSE)) -> 408.17 | G143: 408.17 | H143: 816.34
A144: 3.2.17 | B144: CPU_111 | C144: Torneira cromada de mesa, 1/2? ou 3/4?, para lavatório, padrão médio - fornecimento e instalação. af_01/2020 | D144: un | E144: 13 | F144: =IF(B144="","",VLOOKUP(B144,'RELAÇÃO DE COMPOSIÇÕES'!$A$10:$F$374,6,FALSE)) -> 71.98 | G144: 71.98 | H144: 935.74
A145: 3.2.18 | B145: CPU_112 | C145: Vaso sanitario c/caixa de descarga acoplada, c/saída horizontal, linha ravena, DECA ou similar, inclusive assento ASTRA TPK ou similar, conj. de fixação DECA SP13 ou similar, anel de vedação e engate plástico | D145: un | E145: 12 | F145: =IF(B145="","",VLOOKUP(B145,'RELAÇÃO DE COMPOSIÇÕES'!$A$10:$F$374,6,FALSE)) -> 411.95 | G145: 411.95 | H145: 4943.4
A146: 3.2.19 | B146: CPU_113 | C146: Vaso sanitário convencional, adaptado p/ deficiente físico com elevação do piso, linha popular, ELIZABETH ou similar, com assento plastico universal branco, cj.fixação, tubo de ligação e engate plástico, exceto cx. descarga - Rev 02 | D146: un | E146: 3 | F146: =IF(B146="","",VLOOKUP(B146,'RELAÇÃO DE COMPOSIÇÕES'!$A$10:$F$374,6,FALSE)) -> 245.06 | G146: 245.06 | H146: 735.18
A147: 3.2.20 | B147: CPU_114 | C147: Caixa de descarga de embutir com acabamento inox (Montana, linha Montreal ou similar) | D147: un | E147: 3 | F147: =IF(B147="","",VLOOKUP(B147,'RELAÇÃO DE COMPOSIÇÕES'!$A$10:$F$374,6,FALSE)) -> 313.22 | G147: 313.22 | H147: 939.66
A148: 3.2.21 | B148: CPU_115 | C148: Registro gaveta bruto, d = 65 mm (2 1/2") - ref.1502-B, Pn16, Deca ou similar | D148: un | E148: 2 | F148: =IF(B148="","",VLOOKUP(B148,'RELAÇÃO DE COMPOSIÇÕES'!$A$10:$F$374,6,FALSE)) -> 239.71 | G148: 239.71 | H148: 479.42
A149: 3.2.22 | B149: CPU_116 | C149: Registro gaveta bruto, d = 25 mm (1") - ref.1502-B, Pn16, Deca ou similar | D149: un | E149: 7 | F149: =IF(B149="","",VLOOKUP(B149,'RELAÇÃO DE COMPOSIÇÕES'!$A$10:$F$374,6,FALSE)) -> 69.7 | G149: 69.7 | H149: 487.9
A150: 3.2.23 | B150: CPU_117 | C150: Registro gaveta bruto, d = 40 mm (1 1/2") - ref.1502-B, Pn16, Deca ou similar | D150: un | E150: 5 | F150: =IF(B150="","",VLOOKUP(B150,'RELAÇÃO DE COMPOSIÇÕES'!$A$10:$F$374,6,FALSE)) -> 97.76 | G150: 97.76 | H150: 488.8
A151: 3.2.24 | B151: CPU_118 | C151: Registro gaveta c/ canopla cromada, d=25mm (1") - ref.1509 Deca ou similar | D151: un | E151: 25 | F151: =IF(B151="","",VLOOKUP(B151,'RELAÇÃO DE COMPOSIÇÕES'!$A$10:$F$374,6,FALSE)) -> 96.8 | G151: 96.8 | H151: 2420
A152: 3.2.25 | B152: CPU_119 | C152: Fornecimento e instalação de torneira pressmatic 120 de parede, ref. 17160706, docol ou similar | D152: un | E152: 3 | F152: =IF(B152="","",VLOOKUP(B152,'RELAÇÃO DE COMPOSIÇÕES'!$A$10:$F$374,6,FALSE)) -> 251.89 | G152: 251.89 | H152: 755.67
A153: 3.2.26 | B153: CPU_120 | C153: Joelho de redução 90º de pvc rígido soldável, marrom diâm = 32 x 25mm | D153: un | E153: 30 | F153: =IF(B153="","",VLOOKUP(B153,'RELAÇÃO DE COMPOSIÇÕES'!$A$10:$F$374,6,FALSE)) -> 9.41 | G153: 9.41 | H153: 282.3
A154: 3.2.27 | B154: CPU_121 | C154: Adaptador de pvc rígido soldável c/ flanges livres p/ caixa de água diâm = 32mm x 1" | D154: un | E154: 14 | F154: =IF(B154="","",VLOOKUP(B154,'RELAÇÃO DE COMPOSIÇÕES'!$A$10:$F$374,6,FALSE)) -> 17.37 | G154: 17.37 | H154: 243.18
A155: 3.2.28 | B155: CPU_122 | C155: Adaptador de pvc rígido soldável c/ flanges livres p/ caixa de água diâm = 50mm x 11/2" | D155: un | E155: 6 | F155: =IF(B155="","",VLOOKUP(B155,'RELAÇÃO DE COMPOSIÇÕES'!$A$10:$F$374,6,FALSE)) -> 31.58 | G155: 31.58 | H155: 189.48
A156: 3.2.29 | B156: CPU_123 | C156: Adaptador de pvc rígido soldável c/ flanges livres p/ caixa de água diâm = 75mm x 21/2" | D156: un | E156: 2 | F156: =IF(B156="","",VLOOKUP(B156,'RELAÇÃO DE COMPOSIÇÕES'!$A$10:$F$374,6,FALSE)) -> 134.31 | G156: 134.31 | H156: 268.62
A157: 3.2.30 | B157: CPU_124 | C157: Adaptador curto com bolsa e rosca para registro, pvc, soldável, dn 32mm x 1?, instalado em ramal de distribuição de água - fornecimento e instalação. af_12/2014 | D157: un | E157: 64 | F157: =IF(B157="","",VLOOKUP(B157,'RELAÇÃO DE COMPOSIÇÕES'!$A$10:$F$374,6,FALSE)) -> 4.8 | G157: 4.8 | H157: 307.2
A158: 3.2.31 | B158: CPU_125 | C158: Adaptador curto com bolsa e rosca para registro, pvc, soldável, dn 50mm x 1.1/2?, instalado em prumada de água - fornecimento e instalação. af_12/2014 | D158: un | E158: 10 | F158: =IF(B158="","",VLOOKUP(B158,'RELAÇÃO DE COMPOSIÇÕES'!$A$10:$F$374,6,FALSE)) -> 7.62 | G158: 7.62 | H158: 76.2
A159: 3.2.32 | B159: CPU_126 | C159: Adaptador curto com bolsa e rosca para registro, pvc, soldável, dn 75mm x 2.1/2?, instalado em prumada de água - fornecimento e instalação. af_12/2014 | D159: un | E159: 10 | F159: =IF(B159="","",VLOOKUP(B159,'RELAÇÃO DE COMPOSIÇÕES'!$A$10:$F$374,6,FALSE)) -> 20.59 | G159: 20.59 | H159: 205.9
A160: 3.2.33 | B160: CPU_127 | C160: Bucha de redução longa de pvc rígido soldável, marrom, diâm = 50 x 32mm | D160: un | E160: 21 | F160: =IF(B160="","",VLOOKUP(B160,'RELAÇÃO DE COMPOSIÇÕES'!$A$10:$F$374,6,FALSE)) -> 14.33 | G160: 14.33 | H160: 300.93
A161: 3.2.34 | B161: CPU_128 | C161: Bucha de redução longa de pvc rigido soldável, marrom, diâm = 75 x 50mm | D161: un | E161: 1 | F161: =IF(B161="","",VLOOKUP(B161,'RELAÇÃO DE COMPOSIÇÕES'!$A$10:$F$374,6,FALSE)) -> 25.85 | G161: 25.85 | H161: 25.85
A162: 3.2.35 | B162: CPU_129 | C162: Curva 90 graus, pvc, soldável, dn 32mm, instalado em ramal ou sub-ramal de água - fornecimento e instalação. af_12/2014 | D162: un | E162: 42 | F162: =IF(B162="","",VLOOKUP(B162,'RELAÇÃO DE COMPOSIÇÕES'!$A$10:$F$374,6,FALSE)) -> 12.43 | G162: 12.43 | H162: 522.06
A163: 3.2.36 | B163: CPU_130 | C163: Curva 90 graus, pvc, soldável, dn 50mm, instalado em prumada de água - fornecimento e instalação. af_12/2014 | D163: un | E163: 11 | F163: =IF(B163="","",VLOOKUP(B163,'RELAÇÃO DE COMPOSIÇÕES'!$A$10:$F$374,6,FALSE)) -> 16.61 | G163: =IF(B163="","",ROUND(F163*(1+$H$6),2)) -> 16.61 | H163: =IF(B163="","",ROUND(E163*G163,2)) -> 182.71
A164: 3.2.37 | B164: CPU_131 | C164: Curva 90 graus, pvc, soldável, dn 75mm, instalado em prumada de água - fornecimento e instalação. af_12/2014 | D164: un | E164: 1 | F164: =IF(B164="","",VLOOKUP(B164,'RELAÇÃO DE COMPOSIÇÕES'!$A$10:$F$374,6,FALSE)) -> 48.19 | G164: 48.19 | H164: 48.19
A165: 3.2.38 | B165: CPU_132 | C165: Joelho 90° pvc rígido soldável e c/rosca, diam = 25mm x 1/2" | D165: un | E165: 15 | F165: =IF(B165="","",VLOOKUP(B165,'RELAÇÃO DE COMPOSIÇÕES'!$A$10:$F$374,6,FALSE)) -> 6.35 | G165: 6.35 | H165: 95.25
A166: 3.2.39 | B166: CPU_133 | C166: Luva de pvc rígido soldável, marrom, diâm = 32mm | D166: un | E166: 25 | F166: =IF(B166="","",VLOOKUP(B166,'RELAÇÃO DE COMPOSIÇÕES'!$A$10:$F$374,6,FALSE)) -> 5.12 | G166: 5.12 | H166: 128
A167: 3.2.40 | B167: CPU_134 | C167: Tubo pvc rígido soldável marrom p/ água, d = 25 mm (3/4") | D167: m | E167: 19.4 | F167: =IF(B167="","",VLOOKUP(B167,'RELAÇÃO DE COMPOSIÇÕES'!$A$10:$F$374,6,FALSE)) -> 10.47 | G167: 10.47 | H167: 203.12
A168: 3.2.41 | B168: CPU_135 | C168: Tubo pvc rígido soldável marrom p/ água, d = 32 mm (1") | D168: m | E168: 129.92 | F168: =IF(B168="","",VLOOKUP(B168,'RELAÇÃO DE COMPOSIÇÕES'!$A$10:$F$374,6,FALSE)) -> 14.27 | G168: 14.27 | H168: 1853.96
A169: 3.2.42 | B169: CPU_136 | C169: Tubo pvc rígido soldável marrom p/ água, d = 50 mm (1 1/2") | D169: m | E169: 93.37 | F169: =IF(B169="","",VLOOKUP(B169,'RELAÇÃO DE COMPOSIÇÕES'!$A$10:$F$374,6,FALSE)) -> 34.09 | G169: 34.09 | H169: 3182.98
A170: 3.2.43 | B170: CPU_137 | C170: Tubo pvc rígido soldável marrom p/ água, d = 75 mm (2 1/2") | D170: m | E170: 6.55 | F170: =IF(B170="","",VLOOKUP(B170,'RELAÇÃO DE COMPOSIÇÕES'!$A$10:$F$374,6,FALSE)) -> 61.42 | G170: 61.42 | H170: 402.3
A171: 3.2.44 | B171: CPU_138 | C171: Tê 90º de pvc rígido soldável, marrom diâm = 32mm | D171: un | E171: 11 | F171: =IF(B171="","",VLOOKUP(B171,'RELAÇÃO DE COMPOSIÇÕES'!$A$10:$F$374,6,FALSE)) -> 10.02 | G171: 10.02 | H171: 110.22
A172: 3.2.45 | B172: CPU_139 | C172: Tê 90º de pvc rígido soldável, marrom diâm = 50mm | D172: un | E172: 12 | F172: =IF(B172="","",VLOOKUP(B172,'RELAÇÃO DE COMPOSIÇÕES'!$A$10:$F$374,6,FALSE)) -> 18.52 | G172: 18.52 | H172: 222.24
A173: 3.2.46 | B173: CPU_140 | C173: Tê 90º de pvc rígido soldável, marrom diâm = 75mm | D173: un | E173: 1 | F173: =IF(B173="","",VLOOKUP(B173,'RELAÇÃO DE COMPOSIÇÕES'!$A$10:$F$374,6,FALSE)) -> 60.85 | G173: 60.85 | H173: 60.85
A174: 3.2.47 | B174: CPU_141 | C174: Tê de redução 90º de pvc rígido soldável, marrom diâm = 32 x 25mm | D174: un | E174: 20 | F174: =IF(B174="","",VLOOKUP(B174,'RELAÇÃO DE COMPOSIÇÕES'!$A$10:$F$374,6,FALSE)) -> 11.82 | G174: 11.82 | H174: 236.4
A175: 3.2.48 | B175: CPU_142 | C175: Tê de redução 90º de pvc rígido soldável, marrom diâm = 50 x 32mm | D175: un | E175: 4 | F175: =IF(B175="","",VLOOKUP(B175,'RELAÇÃO DE COMPOSIÇÕES'!$A$10:$F$374,6,FALSE)) -> 22.45 | G175: 22.45 | H175: 89.8
A176: 3.2.49 | B176: CPU_143 | C176: Tê de redução 90º de pvc rígido soldável, marrom diâm = 75 x 50mm | D176: un | E176: 2 | F176: =IF(B176="","",VLOOKUP(B176,'RELAÇÃO DE COMPOSIÇÕES'!$A$10:$F$374,6,FALSE)) -> 55.51 | G176: 55.51 | H176: 111.02
A177: 3.2.50 | B177: CPU_144 | C177: Joelho 90º pvc rígido soldável c/bucha de latão, d= 25mm x 3/4" | D177: un | E177: 3 | F177: =IF(B177="","",VLOOKUP(B177,'RELAÇÃO DE COMPOSIÇÕES'!$A$10:$F$374,6,FALSE)) -> 12.47 | G177: 12.47 | H177: 37.41
A178: 3.2.51 | B178: CPU_145 | C178: Joelho 90º red. pvc rígido soldável c/bucha de latão, diâm= 25mmx1/2" | D178: un | E178: 32 | F178: =IF(B178="","",VLOOKUP(B178,'RELAÇÃO DE COMPOSIÇÕES'!$A$10:$F$374,6,FALSE)) -> 10.98 | G178: 10.98 | H178: 351.36
A179: 3.3 | C179: INSTALAÇÕES DE ESGOTAMENTO SANITÁRIO
A180: 3.3.1 | B180: CPU_146 | C180: Caixa de gordura 0.60 x 0.60 x 0.60m | D180: un | E180: 8 | F180: =IF(B180="","",VLOOKUP(B180,'RELAÇÃO DE COMPOSIÇÕES'!$A$10:$F$374,6,FALSE)) -> 479.51 | G180: 479.51 | H180: 3836.08
A181: 3.3.2 | B181: CPU_147 | C181: Caixa de inspeção 0.60 x 0.60 x 0.60m | D181: un | E181: 8 | F181: =IF(B181="","",VLOOKUP(B181,'RELAÇÃO DE COMPOSIÇÕES'!$A$10:$F$374,6,FALSE)) -> 479.51 | G181: 479.51 | H181: 3836.08
A182: 3.3.3 | B182: CPU_148 | C182: Caixa de passagem em alvenaria de tijolos maciços esp. = 0,12m, dim. int. = 0.70 x 0.70 x 0.80m | D182: un | E182: 3 | F182: =IF(B182="","",VLOOKUP(B182,'RELAÇÃO DE COMPOSIÇÕES'!$A$10:$F$374,6,FALSE)) -> 452.82 | G182: 452.82 | H182: 1358.46
A183: 3.3.4 | B183: CPU_149 | C183: Caixa sifonada, pvc, dn 100 x 100 x 50 mm, junta elástica, fornecida e instalada em ramal de descarga ou em ramal de esgoto sanitário. af_12/2014 | D183: un | E183: 20 | F183: =IF(B183="","",VLOOKUP(B183,'RELAÇÃO DE COMPOSIÇÕES'!$A$10:$F$374,6,FALSE)) -> 23.77 | G183: 23.77 | H183: 475.4
A184: 3.3.5 | B184: CPU_150 | C184: Caixa sifonada quadrada, com sete entradas e uma saída, d = 150 x 150 x 50mm, ref. nº25, acabamento branco, marca Akros ou similar | D184: un | E184: 7 | F184: =IF(B184="","",VLOOKUP(B184,'RELAÇÃO DE COMPOSIÇÕES'!$A$10:$F$374,6,FALSE)) -> 42.49 | G184: 42.49 | H184: 297.43
A185: 3.3.6 | B185: CPU_151 | C185: Curva curta 90 graus, pvc, serie normal, esgoto predial, dn 40 mm, junta soldável, fornecido e instalado em ramal de descarga ou ramal de esgoto sanitário. af_12/2014 | D185: un | E185: 16 | F185: =IF(B185="","",VLOOKUP(B185,'RELAÇÃO DE COMPOSIÇÕES'!$A$10:$F$374,6,FALSE)) -> 7.56 | G185: 7.56 | H185: 120.96
A186: 3.3.7 | B186: CPU_152 | C186: Curva curta 90 graus, pvc, serie normal, esgoto predial, dn 50 mm, junta elástica, fornecido e instalado em ramal de descarga ou ramal de esgoto sanitário. af_12/2014 | D186: un | E186: 3 | F186: =IF(B186="","",VLOOKUP(B186,'RELAÇÃO DE COMPOSIÇÕES'!$A$10:$F$374,6,FALSE)) -> 12.76 | G186: 12.76 | H186: 38.28
A187: 3.3.8 | B187: CPU_153 | C187: Joelho 45° em pvc rígido soldável, para esgoto predial, diâm = 100mm | D187: un | E187: 23 | F187: =IF(B187="","",VLOOKUP(B187,'RELAÇÃO DE COMPOSIÇÕES'!$A$10:$F$374,6,FALSE)) -> 19.27 | G187: 19.27 | H187: 443.21
A188: 3.3.9 | B188: CPU_154 | C188: Joelho de 90° em pvc rígido soldável, para esgoto secundário, diâm = 40mm | D188: un | E188: 2 | F188: =IF(B188="","",VLOOKUP(B188,'RELAÇÃO DE COMPOSIÇÕES'!$A$10:$F$374,6,FALSE)) -> 8.11 | G188: 8.11 | H188: 16.22
A189: 3.3.10 | B189: CPU_155 | C189: Joelho 45° em pvc rígido soldável, para esgoto predial, diâm = 50mm | D189: un | E189: 24 | F189: =IF(B189="","",VLOOKUP(B189,'RELAÇÃO DE COMPOSIÇÕES'!$A$10:$F$374,6,FALSE)) -> 8.44 | G189: 8.44 | H189: 202.56
A190: 3.3.11 | B190: CPU_156 | C190: Joelho 90° em pvc rígido soldável, para esgoto predial, diâm = 100mm | D190: un | E190: 15 | F190: =IF(B190="","",VLOOKUP(B190,'RELAÇÃO DE COMPOSIÇÕES'!$A$10:$F$374,6,FALSE)) -> 19.31 | G190: 19.31 | H190: 289.65
A191: 3.3.12 | B191: CPU_157 | C191: Joelho 90° em pvc rígido soldável, para esgoto predial, diâm = 50mm | D191: un | E191: 42 | F191: =IF(B191="","",VLOOKUP(B191,'RELAÇÃO DE COMPOSIÇÕES'!$A$10:$F$374,6,FALSE)) -> 8.04 | G191: 8.04 | H191: 337.68
A192: 3.3.13 | B192: CPU_158 | C192: Joelho de 90° em pvc rígido c/ anéis, para esgoto secundário, diâm = 40mm | D192: un | E192: 16 | F192: =IF(B192="","",VLOOKUP(B192,'RELAÇÃO DE COMPOSIÇÕES'!$A$10:$F$374,6,FALSE)) -> 8.9 | G192: 8.9 | H192: 142.4
A193: 3.3.14 | B193: CPU_159 | C193: Junção simples em pvc rígido soldável, para esgoto primário, diâm = 100 x 50mm | D193: un | E193: 15 | F193: =IF(B193="","",VLOOKUP(B193,'RELAÇÃO DE COMPOSIÇÕES'!$A$10:$F$374,6,FALSE)) -> 32.94 | G193: 32.94 | H193: 494.1
A194: 3.3.15 | B194: CPU_160 | C194: Junção simples em pvc rígido soldável, para esgoto primário, diâm = 100 x 100mm | D194: un | E194: 9 | F194: =IF(B194="","",VLOOKUP(B194,'RELAÇÃO DE COMPOSIÇÕES'!$A$10:$F$374,6,FALSE)) -> 38.74 | G194: 38.74 | H194: 348.66
A195: 3.3.16 | B195: CPU_161 | C195: Redução excentrica em pvc rígido soldável, para esgoto primário, diâm = 100 x 50mm | D195: un | E195: 1 | F195: =IF(B195="","",VLOOKUP(B195,'RELAÇÃO DE COMPOSIÇÕES'!$A$10:$F$374,6,FALSE)) -> 18.21 | G195: 18.21 | H195: 18.21
A196: 3.3.17 | B196: CPU_162 | C196: Tubo pvc rígido soldável ponta e bolsa p/ esgoto predial, d = 100 mm | D196: m | E196: 136.56 | F196: =IF(B196="","",VLOOKUP(B196,'RELAÇÃO DE COMPOSIÇÕES'!$A$10:$F$374,6,FALSE)) -> 29.68 | G196: 29.68 | H196: 4053.1
A197: 3.3.18 | B197: CPU_163 | C197: Tubo pvc rigido soldavel, serie reforçada, p/esgoto e aguas pluviais, d= 100mm | D197: m | E197: 15 | F197: =IF(B197="","",VLOOKUP(B197,'RELAÇÃO DE COMPOSIÇÕES'!$A$10:$F$374,6,FALSE)) -> 41.6 | G197: 41.6 | H197: 624
A198: 3.3.19 | B198: CPU_164 | C198: Tubo pvc rígido c/anel borracha, serie reforçada, p/esgoto e aguas pluviais, d = 150mm | D198: m | E198: 5 | F198: =IF(B198="","",VLOOKUP(B198,'RELAÇÃO DE COMPOSIÇÕES'!$A$10:$F$374,6,FALSE)) -> 69.89 | G198: 69.89 | H198: 349.45
A199: 3.3.20 | B199: CPU_165 | C199: Tubo pvc rígido soldável, serie reforçada, p/esgoto e aguas pluviais, d = 50 mm | D199: m | E199: 173.06 | F199: =IF(B199="","",VLOOKUP(B199,'RELAÇÃO DE COMPOSIÇÕES'!$A$10:$F$374,6,FALSE)) -> 21 | G199: 21 | H199: 3634.26
A200: 3.3.21 | B200: CPU_166 | C200: Tubo pvc rígido soldável, serie reforçada, p/esgoto e aguas pluviais, d = 40 mm | D200: m | E200: 17.19 | F200: =IF(B200="","",VLOOKUP(B200,'RELAÇÃO DE COMPOSIÇÕES'!$A$10:$F$374,6,FALSE)) -> 16.76 | G200: 16.76 | H200: 288.1
A201: 3.3.22 | B201: CPU_167 | C201: Tubo pvc rigido soldavel, série reforçada, p/esgoto e aguas pluviais, d= 75mm | D201: m | E201: 28.12 | F201: =IF(B201="","",VLOOKUP(B201,'RELAÇÃO DE COMPOSIÇÕES'!$A$10:$F$374,6,FALSE)) -> 31.33 | G201: 31.33 | H201: 881
A202: 3.3.23 | B202: CPU_168 | C202: Joelho 45° em pvc rígido soldável, para esgoto predial, diâm = 50mm | D202: un | E202: 1 | F202: =IF(B202="","",VLOOKUP(B202,'RELAÇÃO DE COMPOSIÇÕES'!$A$10:$F$374,6,FALSE)) -> 8.44 | G202: 8.44 | H202: 8.44
A203: 3.3.24 | B203: CPU_169 | C203: Joelho 90° em pvc rígido soldável, para esgoto predial, diâm = 50mm | D203: un | E203: 18 | F203: =IF(B203="","",VLOOKUP(B203,'RELAÇÃO DE COMPOSIÇÕES'!$A$10:$F$374,6,FALSE)) -> 8.04 | G203: 8.04 | H203: 144.72
A204: 3.3.25 | B204: CPU_170 | C204: Terminal de ventilação em pvc rígido soldável, para esgoto primário, diâm = 50mm | D204: un | E204: 5 | F204: =IF(B204="","",VLOOKUP(B204,'RELAÇÃO DE COMPOSIÇÕES'!$A$10:$F$374,6,FALSE)) -> 8.24 | G204: 8.24 | H204: 41.2
... 172 more rows

Sheet RELAÇÃO DE COMPOSIÇÕES
A4: COMPLEXO (REFORMA DA PRAÇA TENISSON FONTES - PRAÇA DE ALIMENTAÇÃO E CONSTRUÇÃO DE TERMINAL RODOVIÁRIO) - ETAPA 1 | F4: DATA BASE: | G4: JUNHO
A5: município de Itabaianinha, no estado de Sergipe | F5: BDI: | G5: 0.2139
C7: RELAÇÃO DE COMPOSIÇÕES | E7: DESCONTO (LICITAÇÃO): | G7: 0.123
A9: CÓDIGO ORÇAMENTO | B9: CÓDIGO REFERÊNCIA | C9: DESCRIÇÃO | D9: UNID. | E9: CUST UNIT. CODEVASF | F9: CUST UNIT. C/ DESCONTO | G9: PERCENT. DESC. FINAL
C10: ADMINISTRAÇÃO LOCAL E SERVIÇOS PRELIMINARES
C11: ADMINISTRAÇÃO LOCAL
C12: Equipe Dirigente
A13: CPU_1 | B13: 90777 / SINAPI | C13: Engenheiro civil de obra junior com encargos complementares | D13: h | E13: 107.04 | F13: =TRUNC(E13*(1-$G$7),2) -> 93.87 | G13: =ROUND(F13/E13,4) -> 0.877
A14: CPU_2 | B14: 90780 / SINAPI | C14: Mestre de obras com encargos complementares | D14: h | E14: 49.25 | F14: 43.19 | G14: 0.877
A15: CPU_3 | B15: codevasf 01 | C15: Manutenção do Canteiro | D15: un | E15: 3532.74 | F15: 3098.21 | G15: 0.877
C16: SERVIÇOS PRELIMINARES
A17: CPU_4 | B17: 51 / ORSE | C17: Placa de obra em chapa aço galvanizado, instalada | D17: m2 | E17: 389.26 | F17: 341.38 | G17: 0.877
A18: CPU_5 | B18: 9416 / ORSE | C18: Instalação provisória de energia elétrica, aerea, trifasica, em poste galvanizado, exclusive fornecimento do medidor | D18: un | E18: 2227.47 | F18: 1953.49 | G18: 0.877
A19: CPU_6 | B19: 6096 / ORSE | C19: Ligação Predial de Água em Mureta de Concreto, Provisória ou Definitiva, com Fornecimento de Material, inclusive Mureta e Hidrômetro, Rede DN 50mm | D19: UN | E19: 524.14 | F19: 459.67 | G19: 0.877
A20: CPU_7 | B20: 98459 / SINAPI | C20: Tapume com telha metálica. af_05/2018 (para o terminal rodoviário) | D20: m2 | E20: 84.34 | F20: 73.96 | G20: 0.8769
A21: CPU_8 | B21: 4654 / ORSE | C21: Locação de container - Almoxarifado com banheiro - 6,00 x 2,30m | D21: mês | E21: 501.12 | F21: 439.48 | G21: 0.877
A22: CPU_9 | B22: 4657 / ORSE | C22: Locação de container - Escritório com banheiro - 6,20 x 2,20m | D22: mês | E22: 641.43 | F22: 562.53 | G22: 0.877
C23: TERMINAL RODOVIÁRIO | F23: 0
C24: DEMOLIÇÃO | F24: 0
A25: CPU_10 | B25: 07989 / ORSE | C25: Demolição de pavimentação em paralelepípedo sem reaproveitamento | D25: m2 | E25: 10.79 | F25: 9.46 | G25: 0.8767
A26: CPU_11 | B26: 72897 / SINAPI | C26: Carga manual de entulho em caminhao basculante 6 m3 | D26: m3 | E26: 24.28 | F26: 21.29 | G26: 0.8769
C27: MOVIMENTAÇÃO DE TERRA | F27: 0
A28: CPU_13 | B28: 741541 / SINAPI | C28: Escavacao, carga e transporte de material de 1a categoria com trator sobre esteiras 347 hp e cacamba 6m3, dmt 50 a 200m | D28: m3 | E28: 4.45 | F28: 3.9 | G28: 0.8764
C29: PAVIMENTAÇÃO | F29: 0
A30: CPU_14 | B30: 11472 / ORSE | C30: Regularização manual e compactão com placa vibratótia | D30: m2 | E30: 6.33 | F30: 5.55 | G30: =ROUND(F30/E30,4) -> 0.8768
A31: CPU_15 | B31: 11466 / ORSE | C31: Pavimento em concreto armado fck=25mpa, desempolado, e=10cm, p/ sobrecargas de até 4t/m2 c/ tela soldada Q138 | D31: m2 | E31: 87.44 | F31: 76.68 | G31: =ROUND(F31/E31,4) -> 0.8769
A32: CPU_16 | B32: 8906 / ORSE | C32: Pavimentação em concreto usinado, bomb., lançado e adensado, não armado, pigment. BAYFERROX preto ou similar, fck=21Mpa, e = 10cm,regulariz. compac. subleito, lona plástica, incl. juntas serradas 5x10 a 40mm - Rev 03 | D32: m² | E32: 114.25 | F32: 100.19 | G32: 0.8769
A33: CPU_17 | B33: 4864 / ORSE | C33: Piso tátil direcional e de alerta, em concreto colorido, p/deficientes visuais, dimensões 30x30cm, aplicado com argamassa industrializada ac-ii, rejuntado, exclusive regularização de base | D33: m2 | E33: 100.39 | F33: 88.04 | G33: 0.877
A34: CPU_18 | B34: 9962 / ORSE | C34: Lastro de brita graduada apiloada e=10cm | D34: m2 | E34: 24.6 | F34: 21.57 | G34: 0.8768
A35: CPU_19 | B35: 95996 / SINAPI | C35: Execução de pavimento com aplicação de concreto asfáltico, camada de binder - exclusive carga e transporte. af_11/2019 | D35: m3 | E35: 1063.9 | F35: 933.04 | G35: 0.877
A36: CPU_20 | B36: 95995 / SINAPI | C36: Execução de pavimento com aplicação de concreto asfáltico, camada de rolamento - exclusive carga e transporte. af_11/2019 | D36: m3 | E36: 1123.05 | F36: 984.91 | G36: 0.877
A37: CPU_21 | B37: 93176 / SINAPI | C37: Transporte de material asfaltico, com caminhão com capacidade de 30000 l em rodovia pavimentada para distâncias médias de transporte superiores a 100 km. af_02/2016 | D37: txkm | E37: 0.55 | F37: 0.48 | G37: 0.8727
A38: CPU_22 | B38: 2592 / ORSE | C38: Imprimação - execução com fornecimento de material | D38: m2 | E38: 12.2 | F38: 10.69 | G38: 0.8762
A39: CPU_23 | B39: 12214 / ORSE | C39: Rampa padrão para acesso de deficientes a passeio público, em concreto simples Fck=25MPa, desempolada, com pintura indicativa em novacor, 02 demãos | D39: un | E39: 322.74 | F39: 283.04 | G39: 0.877
A40: CPU_24 | B40: 94273 / SINAPI | C40: Assentamento de guia (meio-fio) em trecho reto, confeccionada em concreto pré-fabricado, dimensões 100x15x13x30 cm (comprimento x base inferior x base superior x altura), para vias urbanas (uso viário). af_06/2016 | D40: m | E40: 33.58 | F40: 29.44 | G40: 0.8767
C41: COBERTURA | F41: 0
A42: CPU_25 | B42: 2497 / ORSE | C42: Escavação manual de vala ou cava em material de 1ª categoria, profundidade até 1,50m | D42: m3 | E42: 48.03 | F42: 42.12 | G42: 0.877
A43: CPU_26 | B43: 6456 / ORSE | C43: Concreto Armado fck=21,0MPa, usinado, bombeado, adensado e lançado, para Uso Geral, com formas planas em compensado resinado 12mm (05 usos) | D43: m3 | E43: 1878.38 | F43: 1647.33 | G43: 0.877
A44: CPU_27 | B44: 12508 / ORSE | C44: Estrutura Metálica p/ Cobertura c/Vigas-Treliça Pratt UDC75 e terças em UDC 127, 2 águas, sem lanternin, vãos 6,0 a 10,0m, pintado 1 d oxido ferro + 2 d esmalte epóxi branco, exceto forn. Telhas - Executada | D44: m2 | E44: 141.48 | F44: 124.07 | G44: 0.8769
A45: CPU_28 | B45: 9961 / ORSE | C45: Telhamento com telha metálica em chapa de aço galvanizado natural ondulada e=0,5mm | D45: m² | E45: 63.6 | F45: 55.77 | G45: 0.8769
A46: CPU_29 | B46: 9054 / ORSE | C46: Fornecimento e instalação de brise metálico de alumínio ref. 84F, 45º L, da Fibrocell ou similar | D46: m2 | E46: 239.62 | F46: 210.14 | G46: 0.877
C47: ESCADA E RAMPA | F47: 0
A48: CPU_30 | B48: 2497 / ORSE | C48: Escavação manual de vala ou cava em material de 1ª categoria, profundidade até 1,50m | D48: m3 | E48: 48.03 | F48: 42.12 | G48: 0.877
A49: CPU_31 | B49: 91 / ORSE | C49: Alvenaria pedra calcárea argamassada c/ cimento e areia traço t-4 (1:5) - 1 saco cimento 50kg / 5 padiolas areia dim. 0,35z0,45x0,23m - Confecção mecânica e transporte | D49: m3 | E49: 435.04 | F49: 381.53 | G49: 0.877
A50: CPU_32 | B50: 153 / ORSE | C50: Alvenaria bloco cerâmico vedação, 9x19x24cm, e=19cm, com argamassa t5 - 1:2:8 (cimento/cal/areia), junta=1cm - Rev.08 | D50: m2 | E50: 82.61 | F50: 72.44 | G50: 0.8769
A51: CPU_33 | B51: 3310 / ORSE | C51: Chapisco em parede com argamassa traço t1 - 1:3 (cimento / areia) - Revisado 08/2015 | D51: m2 | E51: 5.87 | F51: 5.14 | G51: =ROUND(F51/E51,4) -> 0.8756
A52: CPU_34 | B52: 1908 / ORSE | C52: Reboco ou emboço externo, de parede, com argamassa traço t5 - 1:2:8 (cimento / cal / areia), espessura 2,0 cm | D52: m2 | E52: 31.03 | F52: 27.21 | G52: =ROUND(F52/E52,4) -> 0.8769
A53: CPU_35 | B53: 71 / ORSE | C53: Aterro manual de áreas, sem aquisição de material, com espalhamento e compactação | D53: m3 | E53: 48.03 | F53: 42.12 | G53: 0.877
A54: CPU_36 | B54: 11466 / ORSE | C54: Pavimento em concreto armado fck=25mpa, desempolado, e=10cm, p/ sobrecargas de até 4t/m2 c/ tela soldada Q138 | D54: m2 | E54: 87.44 | F54: 76.68 | G54: 0.8769
C55: INSTALAÇÕES DE COMBATE A INCÊNDIO | F55: 0
A56: CPU_37 | B56: 20977/ORSE | C56: Extintor de incendio portatil com carga de po quimico seco (pqs) de 8 kg, classe bc | D56: un | E56: 219.76 | F56: 192.72 | G56: 0.877
A57: CPU_38 | B57: 12138 / ORSE | C57: Placa de indicativa de "EXTINTOR" em pvc, dim.: 20 x 20 cm | D57: Un | E57: 23.02 | F57: 20.18 | G57: 0.8766
A58: CPU_39 | B58: 38774/ORSE | C58: Luminaria de emergencia 30 leds, potencia 2 w, bateria de litio, autonomia de 6 horas | D58: un | E58: 25.84 | F58: 22.66 | G58: 0.8769
C59: DIVERSOS | F59: 0
A60: CPU_40 | B60: 3724 / ORSE | C60: Demarcação de pavimentos com pintura de 1 demão de resina acrílica, e aplicação de micro-esferas para sinalização horizontal (Estacionamentos, faixas de pedrestres, etc.) | D60: m2 | E60: 14.3 | F60: 12.54 | G60: 0.8769
A61: CPU_41 | B61: 10839 / ORSE | C61: Corrimão em tubo ferro galvanizado, alt=0,92m, com barras verticais dupla (2") e barras horizontais nas extremidades de 2", inclusive curva em aço (padrão) - para deficientes físicos | D61: m | E61: 203.53 | F61: 178.49 | G61: 0.877
A62: CPU_42 | B62: 3226 / ORSE | C62: Banco de concreto em alvenaria de tijolos, assento em concreto armado, sem encosto, pintado com tinta acrílica, 2 demãos | D62: m | E62: 168.73 | F62: 147.97 | G62: 0.877
A63: CPU_43 | B63: 10234 / ORSE | C63: Grama esmeralda em placas, fornecimento e plantio | D63: m2 | E63: 16.95 | F63: 14.86 | G63: 0.8767
A64: CPU_44 | B64: 10536 / ORSE | C64: Lixeira em fibra de vidro, com capacidade 50l, com suporte (poste), FIOBERGLASS, REF. CLPD1085 ou similar | D64: un | E64: 401.17 | F64: 351.82 | G64: 0.877
A65: CPU_45 | B65: 3167 / ORSE | C65: Placa de inauguração de obra em alumínio 0,60 x 0,80 m | D65: un | E65: 1702.22 | F65: 1492.84 | G65: 0.877
A66: CPU_46 | B66: 2450 / ORSE | C66: Limpeza geral | D66: m2 | E66: 2.14 | F66: 1.87 | G66: 0.8738
C67: REFORMA DA PRAÇA TENISSON FONTES - ETAPA 1 - PRAÇA DE ALIMENTAÇÃO
C68: PRAÇA DE ALIMENTAÇÃO
C69: DEMOLIÇÕES/REMOÇÕES/RETIRADAS
A70: CPU_47 | B70: 07989 / ORSE | C70: Demolição de pavimentação em paralelepípedo sem reaproveitamento | D70: m2 | E70: 10.79 | F70: 9.46 | G70: 0.8767
A71: CPU_48 | B71: 17 / ORSE | C71: Demolição de reboco | D71: m2 | E71: 8 | F71: 7.01 | G71: 0.8763
A72: CPU_49 | B72: 30 / ORSE | C72: Demolição de madeiramento em coberturas com telhas cerâmicas | D72: m2 | E72: 23.54 | F72: 20.64 | G72: =ROUND(F72/E72,4) -> 0.8768
A73: CPU_50 | B73: 9 / ORSE | C73: Remoção de telhamento com telhas cerâmicas | D73: m2 | E73: 10.79 | F73: 9.46 | G73: =ROUND(F73/E73,4) -> 0.8767
A74: CPU_51 | B74: 16 / ORSE | C74: Demolição manual de piso cimentado sobre lastro de concreto - Rev 01 | D74: m2 | E74: 23.54 | F74: 20.64 | G74: 0.8768
A75: CPU_52 | B75: 72897 / SINAPI | C75: Carga manual de entulho em caminhao basculante 6 m3 | D75: m3 | E75: 24.28 | F75: 21.29 | G75: 0.8769
C76: ELEVAÇÕES | F76: 0
A77: CPU_53 | B77: 165 / ORSE | C77: Alvenaria bloco cerâmico vedação, 9x19x24cm, e=24cm, com argamassa t5 - 1:2:8 (cimento/cal/areia), junta=2cm | D77: m2 | E77: 118.95 | F77: =TRUNC(E77*(1-$G$7),2) -> 104.31 | G77: 0.8769
A78: CPU_54 | B78: 3310 / ORSE | C78: Chapisco em parede com argamassa traço t1 - 1:3 (cimento / areia) - Revisado 08/2015 | D78: m2 | E78: 5.87 | F78: 5.14 | G78: 0.8756
A79: CPU_55 | B79: 1907 / ORSE | C79: Chapisco em parede, rústico, com argamassa traço t1 - 1:3 (cimento / areia) - revisado 08/2015 | D79: m2 | E79: 17.88 | F79: 15.68 | G79: 0.877
A80: CPU_56 | B80: 169 / ORSE | C80: Cobogó de cimento, tipo "escama", dim: 50 x 50cm | D80: m2 | E80: 115 | F80: 100.85 | G80: 0.877
A81: CPU_57 | B81: 3314 / ORSE | C81: Reboco ou emboço interno, de parede, com argamassa traço t6 - 1:2:10 (cimento / cal / areia), espessura 1,5 cm | D81: m2 | E81: 28.07 | F81: 24.61 | G81: 0.8767
C82: COBERTURA | F82: 0
A83: CPU_58 | B83: 4810 / ORSE | C83: Madeiramento em massaranduba para telhado, peça principal serrada 14cm x 25cm, com abertura de encaixes | D83: m | E83: 264.95 | F83: 232.36 | G83: 0.877
A84: CPU_59 | B84: 9189 / ORSE | C84: Madeiramento em massaranduba/madeira de lei, acabamento serrado c/ riipão 5x3 e ripa 5x1,5, exclusive peças principais | D84: m2 | E84: 86.57 | F84: 75.92 | G84: 0.877
A85: CPU_60 | B85: 230 / ORSE | C85: Telhamento com telha cerâmica tipo colonial, 1ª qualid, cor clara, Itabaianinha ou similar - Rev 02 | D85: m2 | E85: 75.9 | F85: 66.56 | G85: 0.8769
A86: CPU_61 | B86: 96116 / SINAPI | C86: Forro em réguas de pvc, frisado, para ambientes comerciais, inclusive estrutura de fixação. af_05/2017_p | D86: m2 | E86: 60.69 | F86: 53.22 | G86: 0.8769
C87: PAVIMENTAÇÕES | F87: 0
A88: CPU_62 | B88: 5103 / ORSE | C88: Regularização Manual | D88: m2 | E88: 4.8 | F88: 4.2 | G88: 0.875
A89: CPU_63 | B89: 9962 / ORSE | C89: Lastro de brita graduada apiloada e=10cm | D89: m2 | E89: 24.6 | F89: 21.57 | G89: 0.8768
A90: CPU_64 | B90: 9445 / ORSE | C90: Piso em concreto simples desempolado, fck = 21 MPa, e = 10 cm - Não inclui formas para juntas de concretagem | D90: m² | E90: 59.63 | F90: 52.29 | G90: 0.8769
A91: CPU_65 | B91: 4555 / ORSE | C91: Meio-fio de concreto simples, rejuntado com argamassa de cimento e areia no traço 1:3 | D91: m | E91: 28.34 | F91: 24.85 | G91: 0.8769
A92: CPU_66 | B92: 10168 / ORSE | C92: Piso alta resistencia, colorido, e=10mm, aplicado com juntas, polido até o esmeril 400 e encerado | D92: m2 | E92: 49.03 | F92: 42.99 | G92: 0.8768
A93: CPU_67 | B93: 8906 / ORSE | C93: Pavimentação em concreto usinado, bomb., lançado e adensado, não armado, pigment. BAYFERROX preto ou similar, fck=21Mpa, e = 10cm,regulariz. compac. subleito, lona plástica, incl. juntas serradas 5x10 a 40mm - Rev 03 (CINZA) | D93: m² | E93: 114.25 | F93: 100.19 | G93: =ROUND(F93/E93,4) -> 0.8769
A94: CPU_68 | B94: 8906 / ORSE | C94: Pavimentação em concreto usinado, bomb., lançado e adensado, não armado, pigment. BAYFERROX preto ou similar, fck=21Mpa, e = 10cm,regulariz. compac. subleito, lona plástica, incl. juntas serradas 5x10 a 40mm - Rev 03 (VERMELHO) | D94: m² | E94: 114.25 | F94: 100.19 | G94: =ROUND(F94/E94,4) -> 0.8769
A95: CPU_69 | B95: 10064 / ORSE | C95: Revestimento cerâmico para piso ou parede, 53 x 53 cm, Arielle, linha atenas, cor cinza ou bege, ou similar, PEI-5, aplicado com argamassa industrializada ac-ii, rejuntado, exclusive regularização de base ou emboço | D95: m2 | E95: 50.15 | F95: 43.98 | G95: 0.877
A96: CPU_70 | B96: 10273 / ORSE | C96: Canaleta de drenagem em alvenaria de tijolo maciço, dimensões internas 40 x 50cm, com tampa de concreto, inclusive escavação manual | D96: m | E96: 293.56 | F96: 257.45 | G96: 0.877
C97: REVESTIMENTO BOXES E BANHEIROS | F97: 0
A98: CPU_71 | B98: 7593 / ORSE | C98: Revestimento cerâmico para piso ou parede, 20 x 20 cm, Elizabeth ou similar, linha Cristal Branco, aplicado c/argamassa industrializada ac-ii, rejuntado, exclusive regularização de base ou emboço | D98: m2 | E98: 49.55 | F98: 43.45 | G98: 0.8769
C99: ESQUADRIAS | F99: 0
A100: CPU_72 | B100: 7285 / ORSE | C100: Soleira em granito branco fortaleza, l = 15 cm, e = 2 cm | D100: m | E100: 68.75 | F100: 60.29 | G100: 0.8769
A101: CPU_73 | B101: 3314 / ORSE | C101: Reboco ou emboço interno, de parede, com argamassa traço t6 - 1:2:10 (cimento / cal / areia), espessura 1,5 cm | D101: m2 | E101: 28.07 | F101: 24.61 | G101: 0.8767
A102: CPU_74 | B102: 190 / ORSE | C102: Divisória em granito bege ipanema polido, e=3cm , inclusive montagem com ferragens | D102: m2 | E102: 400.59 | F102: 351.31 | G102: 0.877
A103: CPU_75 | B103: 9692 / ORSE | C103: Porta em madeira compensada (canela), lisa, semi-ôca, (0,60 x 1,60 a 1,80m), p/pintura, inclusive ferragens (livre/ocupado), exclusive batente, para uso em divisórias granito ou marmore | D103: un | E103: 910.01 | F103: 798.07 | G103: 0.877
A104: CPU_76 | B104: 7165 / ORSE | C104: Porta em madeira compensada (canela), lisa, semi-ôca, 0.90 x 2.10 m, para sanitário de deficiente físico (inclusive batente, ferragens, fechadura, suporte e chapa de alumínio e=1mm) - Rev 03 | D104: un | E104: 1020.05 | F104: 894.58 | G104: 0.877
A105: CPU_77 | B105: 3547 / ORSE | C105: Porta em madeira compensada (canela), lisa, semi-ôca, 0.80 x 2.10 m, inclusive batente e ferragens | D105: un | E105: 605.06 | F105: 530.63 | G105: 0.877
A106: CPU_78 | B106: 1857 / ORSE | C106: Porta em aço, em chapa galvanizada nº24, raiada, de enrolar | D106: m2 | E106: 223.14 | F106: 195.69 | G106: 0.877
A107: CPU_79 | B107: 11718 / ORSE | C107: Portão em chapa de ferro veneziana tipo Z inclusive dobradiças, ferrolhos e chumbadores em chapa de ferro e=5mm | D107: m2 | E107: 601.53 | F107: 527.54 | G107: 0.877
C108: PINTURA | F108: 0
A109: CPU_80 | B109: 2296 / ORSE | C109: Pintura para exteriores, sobre paredes, com lixamento, aplicação de 01 demão de selador acrílico, 01 demão de textura acrílica branca e 02 demãos de tinta acrílica convencional | D109: m2 | E109: 38.77 | F109: 34 | G109: 0.877
A110: CPU_81 | B110: 742451 / SINAPI | C110: Pintura acrilica em piso cimentado duas demaos (CHAPISCO FACHADA) | D110: m2 | E110: 15.86 | F110: 13.9 | G110: 0.8764
A111: CPU_82 | B111: 2298 / ORSE | C111: Pintura para interiores, sobre paredes ou tetos, com lixamento, aplicação de 01 demão de líquido selador acrílico, 01 demão de textura acrílica branca e 02 demãos de tinta pva latex convencional para interiores | D111: m2 | E111: 38.2 | F111: 33.5 | G111: 0.877
A112: CPU_83 | B112: 2304 / ORSE | C112: Pintura de proteção sobre superfícies metálicas com aplicação de 01 demão de tinta anti-corrosiva zarcão - R2 | D112: m2 | E112: 9.3 | F112: 8.15 | G112: 0.8763
A113: CPU_84 | B113: 7808 / ORSE | C113: Pintura de acabamento com aplicação de 02 demãos de esmalte sobre superfícies metálicas - R1 | D113: m2 | E113: 16.88 | F113: 14.8 | G113: 0.8768
A114: CPU_85 | B114: 2308 / ORSE | C114: Pintura de acabamento com lixamento e aplicação de 02 demãos de esmalte sintético sobre madeira - R1 | D114: m2 | E114: 17.08 | F114: 14.97 | G114: =ROUND(F114/E114,4) -> 0.8765
C115: PAISAGISMO | F115: 0
A116: CPU_86 | B116: 10234 / ORSE | C116: Grama esmeralda em placas, fornecimento e plantio | D116: m2 | E116: 16.95 | F116: 14.86 | G116: =ROUND(F116/E116,4) -> 0.8767
A117: CPU_87 | B117: 3319 / ORSE | C117: Fornecimento e plantio de herbáceas ornamentais (pingo de ouro) | D117: un | E117: 2.8 | F117: 2.45 | G117: 0.875
A118: CPU_88 | B118: 8814 / ORSE | C118: Fornecimento e plantio de palmeira mini imperial, média | D118: un | E118: 108.13 | F118: 94.83 | G118: 0.877
C119: DIVERSOS | F119: 0
A120: CPU_89 | B120: 12189 / ORSE | C120: Corrimão duplo central em tubo de ferro galvanizado 1 1/2", com chumbadores para fixação no piso | D120: m | E120: 277.23 | F120: 243.13 | G120: 0.877
A121: CPU_90 | B121: 10536 / ORSE | C121: Lixeira em fibra de vidro, com capacidade 50l, com suporte (poste), FIOBERGLASS, REF. CLPD1085 ou similar | D121: un | E121: 401.17 | F121: 351.82 | G121: 0.877
A122: CPU_91 | B122: 3223 / ORSE | C122: Banco de concreto pre-moldado com encosto e pintura (padrão emurb) | D122: un | E122: 825.96 | F122: 724.36 | G122: 0.877
A123: CPU_92 | B123: 3226 / ORSE | C123: Banco de concreto em alvenaria de tijolos, assento em concreto armado, sem encosto, pintado com tinta acrílica, 2 demãos | D123: m | E123: 168.73 | F123: 147.97 | G123: 0.877
A124: CPU_93 | B124: 3167 / ORSE | C124: Placa de inauguração de obra em alumínio 0,60 x 0,80 m | D124: un | E124: 1702.22 | F124: 1492.84 | G124: 0.877
A125: CPU_94 | B125: 2450 / ORSE | C125: Limpeza geral | D125: m2 | E125: 2.14 | F125: 1.87 | G125: 0.8738
C126: INSTALAÇÕES HIDRÁULICAS | F126: 0
A127: CPU_95 | B127: 2038 / ORSE | C127: Registro gaveta bruto 1/2" (ref 1510 hd) Deca ou similar | D127: un | E127: 45.66 | F127: 40.04 | G127: 0.8769
A128: CPU_96 | B128: 1047 / ORSE | C128: Adaptador de pvc rígido soldável c/ flanges livres p/ caixa de água diâm = 20mm x 1/2" | D128: un | E128: 11.65 | F128: 10.21 | G128: 0.8764
A129: CPU_97 | B129: 1036 / ORSE | C129: Adaptador de pvc rígido soldável curto c/ bolsa e rosca p/ registro diâm = 20mm x 1/2" | D129: un | E129: 7.63 | F129: 6.69 | G129: 0.8768
A130: CPU_98 | B130: 1107 / ORSE | C130: Curva 45º de pvc rígido soldável, marrom diâm = 20mm | D130: un | E130: 8.53 | F130: 7.48 | G130: 0.8769
A131: CPU_99 | B131: 1116 / ORSE | C131: Curva 90º de pvc rígido soldável, marrom diâm = 20mm | D131: un | E131: 9.01 | F131: 7.9 | G131: 0.8768
A132: CPU_100 | B132: 1149 / ORSE-C | C132: Luva de pvc rígido soldável, marrom, diâm = 20mm | D132: un | E132: 4.08 | F132: 3.57 | G132: 0.875
A133: CPU_101 | B133: 1027 / ORSE-C | C133: Tubo pvc rígido soldável marrom p/ água, d = 20 mm (1/2") | D133: m | E133: 10.2 | F133: 8.94 | G133: 0.8765
A134: CPU_102 | B134: 1031 / ORSE-C | C134: Tubo pvc rígido soldável marrom p/ água, d = 50 mm (1 1/2") | D134: m | E134: 38.88 | F134: 34.09 | G134: 0.8768
A135: CPU_103 | B135: 1167 / ORSE-C | C135: Tê 90º de pvc rígido soldável, marrom diâm = 20mm | D135: un | E135: 8.49 | F135: 7.44 | G135: =ROUND(F135/E135,4) -> 0.8763
A136: CPU_104 | B136: 1171 / ORSE-C | C136: Tê 90º de pvc rígido soldável, marrom diâm = 50mm | D136: un | E136: 21.12 | F136: 18.52 | G136: =ROUND(F136/E136,4) -> 0.8769
A137: CPU_105 | B137: 2021 / ORSE-C | C137: Cuba de aço inox 304, dimensões 34 x 56cm, para instalação em bancada, c/ válvula cromada (deca ref 1623), sifão cromado (deca ref c1680), torneira cromada (deca linha c40 ref1159) e engate de plástico ou similares | D137: un | E137: 554.16 | F137: 485.99 | G137: 0.877
A138: CPU_106 | B138: 11736 / ORSE-C | C138: Bancada em granito branco fortaleza, e = 2cm | D138: m2 | E138: 425.72 | F138: 373.35 | G138: 0.877
A139: CPU_107 | B139: 3671 / ORSE-C | C139: Cuba de embutir, oval, CELITE 10116 ou similar, inclusive sifão cromado, válvula cromada para lavatório, engate cromado | D139: un | E139: 368.47 | F139: 323.14 | G139: 0.877
A140: CPU_108 | B140: 2089 / ORSE-C | C140: Lavatório louça (Deca-Ravena ref L-91 ou similares) sem coluna, c/ sifão cromado, válvula cromada, engate cromado, exclusive torneira | D140: un | E140: 485.66 | F140: 425.92 | G140: 0.877
A141: CPU_109 | B141: 10345 / ORSE-C | C141: Mictório de louça branca com sifão integrado, engate flexivel cromado 1/2", registro de pressão 1/2" com canopla cromada acabamento simples e conjunto de fixação | D141: un | E141: 537.46 | F141: =TRUNC(E141*(1-$G$7),2) -> 471.35 | G141: 0.877
A142: CPU_110 | B142: 86923 / SINAPI-C | C142: Tanque de louça branca suspenso, 18l ou equivalente, incluso sifão tipo garrafa em pvc, válvula plástica e torneira de metal cromado padrão popular - fornecimento e instalação. af_01/2020 | D142: un | E142: 465.42 | F142: 408.17 | G142: 0.877
A143: CPU_111 | B143: 86915 / SINAPI-C | C143: Torneira cromada de mesa, 1/2? ou 3/4?, para lavatório, padrão médio - fornecimento e instalação. af_01/2020 | D143: un | E143: 82.08 | F143: 71.98 | G143: 0.8769
A144: CPU_112 | B144: 9017 / ORSE-C | C144: Vaso sanitario c/caixa de descarga acoplada, c/saída horizontal, linha ravena, DECA ou similar, inclusive assento ASTRA TPK ou similar, conj. de fixação DECA SP13 ou similar, anel de vedação e engate plástico | D144: un | E144: 469.73 | F144: 411.95 | G144: 0.877
A145: CPU_113 | B145: 7899 / ORSE-C | C145: Vaso sanitário convencional, adaptado p/ deficiente físico com elevação do piso, linha popular, ELIZABETH ou similar, com assento plastico universal branco, cj.fixação, tubo de ligação e engate plástico, exceto cx. descarga - Rev 02 | D145: un | E145: 279.43 | F145: 245.06 | G145: 0.877
A146: CPU_114 | B146: 7589 / ORSE-C | C146: Caixa de descarga de embutir com acabamento inox (Montana, linha Montreal ou similar) | D146: un | E146: 357.15 | F146: 313.22 | G146: 0.877
A147: CPU_115 | B147: 1461 / ORSE-C | C147: Registro gaveta bruto, d = 65 mm (2 1/2") - ref.1502-B, Pn16, Deca ou similar | D147: un | E147: 273.33 | F147: 239.71 | G147: 0.877
A148: CPU_116 | B148: 1457 / ORSE-C | C148: Registro gaveta bruto, d = 25 mm (1") - ref.1502-B, Pn16, Deca ou similar | D148: un | E148: 79.48 | F148: 69.7 | G148: 0.877
A149: CPU_117 | B149: 1459 / ORSE-C | C149: Registro gaveta bruto, d = 40 mm (1 1/2") - ref.1502-B, Pn16, Deca ou similar | D149: un | E149: 111.48 | F149: 97.76 | G149: 0.8769
A150: CPU_118 | B150: 1466 / ORSE-C | C150: Registro gaveta c/ canopla cromada, d=25mm (1") - ref.1509 Deca ou similar | D150: un | E150: 110.38 | F150: 96.8 | G150: 0.877
A151: CPU_119 | B151: 3260 / ORSE-C | C151: Fornecimento e instalação de torneira pressmatic 120 de parede, ref. 17160706, docol ou similar | D151: un | E151: 287.22 | F151: 251.89 | G151: 0.877
A152: CPU_120 | B152: 1144 / ORSE-C | C152: Joelho de redução 90º de pvc rígido soldável, marrom diâm = 32 x 25mm | D152: un | E152: 10.74 | F152: 9.41 | G152: 0.8762
A153: CPU_121 | B153: 1049 / ORSE-C | C153: Adaptador de pvc rígido soldável c/ flanges livres p/ caixa de água diâm = 32mm x 1" | D153: un | E153: 19.81 | F153: 17.37 | G153: 0.8768
A154: CPU_122 | B154: 1051 / ORSE-C | C154: Adaptador de pvc rígido soldável c/ flanges livres p/ caixa de água diâm = 50mm x 11/2" | D154: un | E154: 36.02 | F154: 31.58 | G154: 0.8767
A155: CPU_123 | B155: 1053 / ORSE-C | C155: Adaptador de pvc rígido soldável c/ flanges livres p/ caixa de água diâm = 75mm x 21/2" | D155: un | E155: 153.15 | F155: 134.31 | G155: 0.877
A156: CPU_124 | B156: 89436 / SINAPI-C | C156: Adaptador curto com bolsa e rosca para registro, pvc, soldável, dn 32mm x 1?, instalado em ramal de distribuição de água - fornecimento e instalação. af_12/2014 | D156: un | E156: 5.48 | F156: 4.8 | G156: =ROUND(F156/E156,4) -> 0.8759
A157: CPU_125 | B157: 89596 / SINAPI-C | C157: Adaptador curto com bolsa e rosca para registro, pvc, soldável, dn 50mm x 1.1/2?, instalado em prumada de água - fornecimento e instalação. af_12/2014 | D157: un | E157: 8.69 | F157: 7.62 | G157: =ROUND(F157/E157,4) -> 0.8769
A158: CPU_126 | B158: 89613 / SINAPI-C | C158: Adaptador curto com bolsa e rosca para registro, pvc, soldável, dn 75mm x 2.1/2?, instalado em prumada de água - fornecimento e instalação. af_12/2014 | D158: un | E158: 23.48 | F158: 20.59 | G158: 0.8769
A159: CPU_127 | B159: 1084 / ORSE-C | C159: Bucha de redução longa de pvc rígido soldável, marrom, diâm = 50 x 32mm | D159: un | E159: 16.34 | F159: 14.33 | G159: 0.877
A160: CPU_128 | B160: 1089 / ORSE-C | C160: Bucha de redução longa de pvc rigido soldável, marrom, diâm = 75 x 50mm | D160: un | E160: 29.48 | F160: 25.85 | G160: 0.8769
A161: CPU_129 | B161: 89369 / SINAPI-C | C161: Curva 90 graus, pvc, soldável, dn 32mm, instalado em ramal ou sub-ramal de água - fornecimento e instalação. af_12/2014 | D161: un | E161: 14.18 | F161: 12.43 | G161: 0.8766
A162: CPU_130 | B162: 89503 / SINAPI-C | C162: Curva 90 graus, pvc, soldável, dn 50mm, instalado em prumada de água - fornecimento e instalação. af_12/2014 | D162: un | E162: 18.95 | F162: 16.61 | G162: 0.8765
A163: CPU_131 | B163: 89517 / SINAPI-C | C163: Curva 90 graus, pvc, soldável, dn 75mm, instalado em prumada de água - fornecimento e instalação. af_12/2014 | D163: un | E163: 54.95 | F163: 48.19 | G163: 0.877
A164: CPU_132 | B164: 10226 / ORSE-C | C164: Joelho 90° pvc rígido soldável e c/rosca, diam = 25mm x 1/2" | D164: un | E164: 7.25 | F164: 6.35 | G164: 0.8759
A165: CPU_133 | B165: 1151 / ORSE-C | C165: Luva de pvc rígido soldável, marrom, diâm = 32mm | D165: un | E165: 5.84 | F165: 5.12 | G165: 0.8767
A166: CPU_134 | B166: 1028 / ORSE-C | C166: Tubo pvc rígido soldável marrom p/ água, d = 25 mm (3/4") | D166: m | E166: 11.94 | F166: 10.47 | G166: 0.8769
A167: CPU_135 | B167: 1029 / ORSE-C | C167: Tubo pvc rígido soldável marrom p/ água, d = 32 mm (1") | D167: m | E167: 16.28 | F167: 14.27 | G167: 0.8765
A168: CPU_136 | B168: 1031 / ORSE-C | C168: Tubo pvc rígido soldável marrom p/ água, d = 50 mm (1 1/2") | D168: m | E168: 38.88 | F168: 34.09 | G168: 0.8768
A169: CPU_137 | B169: 1033 / ORSE-C | C169: Tubo pvc rígido soldável marrom p/ água, d = 75 mm (2 1/2") | D169: m | E169: 70.04 | F169: 61.42 | G169: 0.8769
A170: CPU_138 | B170: 1169 / ORSE-C | C170: Tê 90º de pvc rígido soldável, marrom diâm = 32mm | D170: un | E170: 11.43 | F170: 10.02 | G170: 0.8766
A171: CPU_139 | B171: 1171 / ORSE-C | C171: Tê 90º de pvc rígido soldável, marrom diâm = 50mm | D171: un | E171: 21.12 | F171: 18.52 | G171: 0.8769
A172: CPU_140 | B172: 1173 / ORSE-C | C172: Tê 90º de pvc rígido soldável, marrom diâm = 75mm | D172: un | E172: 69.39 | F172: 60.85 | G172: 0.8769
A173: CPU_141 | B173: 1177 / ORSE-C | C173: Tê de redução 90º de pvc rígido soldável, marrom diâm = 32 x 25mm | D173: un | E173: 13.48 | F173: 11.82 | G173: 0.8769
A174: CPU_142 | B174: 1181 / ORSE-C | C174: Tê de redução 90º de pvc rígido soldável, marrom diâm = 50 x 32mm | D174: un | E174: 25.61 | F174: 22.45 | G174: 0.8766
A175: CPU_143 | B175: 1183 / ORSE-C | C175: Tê de redução 90º de pvc rígido soldável, marrom diâm = 75 x 50mm | D175: un | E175: 63.3 | F175: 55.51 | G175: 0.8769
A176: CPU_144 | B176: 4965 / ORSE-C | C176: Joelho 90º pvc rígido soldável c/bucha de latão, d= 25mm x 3/4" | D176: un | E176: 14.22 | F176: 12.47 | G176: 0.8769
A177: CPU_145 | B177: 479 / ORSE-C | C177: Joelho 90º red. pvc rígido soldável c/bucha de latão, diâm= 25mmx1/2" | D177: un | E177: 12.53 | F177: 10.98 | G177: =ROUND(F177/E177,4) -> 0.8763
C178: INSTALAÇÕES DE ESGOTAMENTO SANITÁRIO | F178: 0
A179: CPU_146 | B179: 11334 / ORSE-C | C179: Caixa de gordura 0.60 x 0.60 x 0.60m | D179: un | E179: 546.77 | F179: 479.51 | G179: =ROUND(F179/E179,4) -> 0.877
A180: CPU_147 | B180: 4883 / ORSE-C | C180: Caixa de inspeção 0.60 x 0.60 x 0.60m | D180: un | E180: 546.77 | F180: 479.51 | G180: 0.877
A181: CPU_148 | B181: 8343 / ORSE-C | C181: Caixa de passagem em alvenaria de tijolos maciços esp. = 0,12m, dim. int. = 0.70 x 0.70 x 0.80m | D181: un | E181: 516.33 | F181: 452.82 | G181: 0.877
A182: CPU_149 | B182: 89707 / SINAPI-C | C182: Caixa sifonada, pvc, dn 100 x 100 x 50 mm, junta elástica, fornecida e instalada em ramal de descarga ou em ramal de esgoto sanitário. af_12/2014 | D182: un | E182: 27.11 | F182: 23.77 | G182: 0.8768
A183: CPU_150 | B183: 1695 / ORSE-C | C183: Caixa sifonada quadrada, com sete entradas e uma saída, d = 150 x 150 x 50mm, ref. nº25, acabamento branco, marca Akros ou similar | D183: un | E183: 48.45 | F183: 42.49 | G183: 0.877
A184: CPU_151 | B184: 89728 / SINAPI-C | C184: Curva curta 90 graus, pvc, serie normal, esgoto predial, dn 40 mm, junta soldável, fornecido e instalado em ramal de descarga ou ramal de esgoto sanitário. af_12/2014 | D184: un | E184: 8.63 | F184: 7.56 | G184: 0.876
A185: CPU_152 | B185: 89733 / SINAPI-C | C185: Curva curta 90 graus, pvc, serie normal, esgoto predial, dn 50 mm, junta elástica, fornecido e instalado em ramal de descarga ou ramal de esgoto sanitário. af_12/2014 | D185: un | E185: 14.56 | F185: 12.76 | G185: 0.8764
A186: CPU_153 | B186: 1553 / ORSE-C | C186: Joelho 45° em pvc rígido soldável, para esgoto predial, diâm = 100mm | D186: un | E186: 21.98 | F186: 19.27 | G186: 0.8767
A187: CPU_154 | B187: 1603 / ORSE-C | C187: Joelho de 90° em pvc rígido soldável, para esgoto secundário, diâm = 40mm | D187: un | E187: 9.25 | F187: 8.11 | G187: 0.8768
A188: CPU_155 | B188: 1551 / ORSE-C | C188: Joelho 45° em pvc rígido soldável, para esgoto predial, diâm = 50mm | D188: un | E188: 9.63 | F188: 8.44 | G188: 0.8764
A189: CPU_156 | B189: 1556 / ORSE-C | C189: Joelho 90° em pvc rígido soldável, para esgoto predial, diâm = 100mm | D189: un | E189: 22.02 | F189: 19.31 | G189: 0.8769
A190: CPU_157 | B190: 1554 / ORSE-C | C190: Joelho 90° em pvc rígido soldável, para esgoto predial, diâm = 50mm | D190: un | E190: 9.17 | F190: 8.04 | G190: 0.8768
A191: CPU_158 | B191: 1671 / ORSE-C | C191: Joelho de 90° em pvc rígido c/ anéis, para esgoto secundário, diâm = 40mm | D191: un | E191: 10.15 | F191: 8.9 | G191: 0.8768
A192: CPU_159 | B192: 1562 / ORSE-C | C192: Junção simples em pvc rígido soldável, para esgoto primário, diâm = 100 x 50mm | D192: un | E192: 37.56 | F192: 32.94 | G192: 0.877
A193: CPU_160 | B193: 1564 / ORSE-C | C193: Junção simples em pvc rígido soldável, para esgoto primário, diâm = 100 x 100mm | D193: un | E193: 44.18 | F193: 38.74 | G193: 0.8769
A194: CPU_161 | B194: 1583 / ORSE-C | C194: Redução excentrica em pvc rígido soldável, para esgoto primário, diâm = 100 x 50mm | D194: un | E194: 20.77 | F194: 18.21 | G194: 0.8767
A195: CPU_162 | B195: 1527 / ORSE-C | C195: Tubo pvc rígido soldável ponta e bolsa p/ esgoto predial, d = 100 mm | D195: m | E195: 33.85 | F195: 29.68 | G195: 0.8768
A196: CPU_163 | B196: 9377 / ORSE-C | C196: Tubo pvc rigido soldavel, serie reforçada, p/esgoto e aguas pluviais, d= 100mm | D196: m | E196: 47.44 | F196: 41.6 | G196: 0.8769
A197: CPU_164 | B197: 9388 / ORSE-C | C197: Tubo pvc rígido c/anel borracha, serie reforçada, p/esgoto e aguas pluviais, d = 150mm | D197: m | E197: 79.7 | F197: 69.89 | G197: 0.8769
A198: CPU_165 | B198: 9390 / ORSE-C | C198: Tubo pvc rígido soldável, serie reforçada, p/esgoto e aguas pluviais, d = 50 mm | D198: m | E198: 23.95 | F198: 21 | G198: 0.8768
A199: CPU_166 | B199: 9389 / ORSE-C | C199: Tubo pvc rígido soldável, serie reforçada, p/esgoto e aguas pluviais, d = 40 mm | D199: m | E199: 19.12 | F199: 16.76 | G199: 0.8766
A200: CPU_167 | B200: 9376 / ORSE-C | C200: Tubo pvc rigido soldavel, série reforçada, p/esgoto e aguas pluviais, d= 75mm | D200: m | E200: 35.73 | F200: 31.33 | G200: 0.8769
A201: CPU_168 | B201: 1551 / ORSE-C | C201: Joelho 45° em pvc rígido soldável, para esgoto predial, diâm = 50mm | D201: un | E201: 9.63 | F201: 8.44 | G201: 0.8764
A202: CPU_169 | B202: 1554 / ORSE-C | C202: Joelho 90° em pvc rígido soldável, para esgoto predial, diâm = 50mm | D202: un | E202: 9.17 | F202: 8.04 | G202: 0.8768
A203: CPU_170 | B203: 1594 / ORSE-C | C203: Terminal de ventilação em pvc rígido soldável, para esgoto primário, diâm = 50mm | D203: un | E203: 9.4 | F203: 8.24 | G203: 0.8766
A204: CPU_171 | B204: 1525 / ORSE-C | C204: Tubo pvc rígido soldável ponta e bolsa p/ esgoto predial, d = 50 mm | D204: m | E204: 18.85 | F204: 16.53 | G204: 0.8769
A205: CPU_172 | B205: 1585 / ORSE-C | C205: Tê sanitário em pvc rígido soldável, para esgoto primário, diâm = 50 x 50mm | D205: un | E205: 19.22 | F205: =TRUNC(E205*(1-$G$7),2) -> 16.85 | G205: 0.8767
... 169 more rows
